Workbook

Sheet Appendix 1- Actuals Bud Share
C1: Actuals for Budget Share as at 09/07/2021
A2: Cfr2 | B2: Cfr2 (T) | C2: Account | D2: Account (T) | E2: Costc | F2: Actuals | G2: Original Budget | H2: Virements | I2: Revised Budget | J2: Variance (Actuals-Revised Budget) | K2: % Spent | L2: Forecast | M2: Forecast Variance | N2: Links to reports
A3: E01 | B3: Teaching Staff | C3: A10005 | D3: Teachers Basic Pay | E3: S31600 | F3: 134009.25 | G3: 556588 | H3: 0 | I3: 556588 | J3: -422578.75 | K3: =IFERROR(F3/I3,0)*100 -> 24.07692045 | L3: 0 | M3: -556588
A4: E01 | B4: Teaching Staff | C4: A12005 | D4: Teachers Ers NI | E4: S31600 | F4: 13835.86 | G4: 58955 | H4: 0 | I4: 58955 | J4: -45119.14 | K4: =IFERROR(F4/I4,0)*100 -> 23.46850988 | L4: 0 | M4: -58955
A5: E01 | B5: Teaching Staff | C5: A13005 | D5: Teachers Ers Pension Conts | E5: S31600 | F5: 29971.92 | G5: 126897 | H5: 0 | I5: 126897 | J5: -96925.08 | K5: 23.61909265 | L5: 0 | M5: -126897
A6: E01 | B6: Teaching Staff | C6: A14005 | D6: Teachers Allowances | E6: S31600 | F6: 4066.19 | G6: 20136 | H6: 0 | I6: 20136 | J6: -16069.81 | K6: 20.19363329 | L6: 0 | M6: -20136
A7: E01 | B7: Teaching Staff | F7: =SUBTOTAL(9, F3:F6) -> 181883.22 | G7: 762576 | H7: 0 | I7: 762576 | J7: -580692.78 | K7: 23.85115975 | L7: 0 | M7: -762576
A8: E03 | B8: Education Support Staff | C8: A10080 | D8: Learning Support Assistants Basic Pay | E8: S31600 | F8: 42411.11 | G8: 171841 | H8: 0 | I8: 171841 | J8: -129429.89 | K8: 24.68043715 | L8: 0 | M8: -171841
A9: E03 | B9: Education Support Staff | C9: A10115 | D9: Support Worker Basic Pay | E9: S31600 | F9: 0 | G9: 9436 | H9: 0 | I9: 9436 | J9: -9436 | K9: 0 | L9: 0 | M9: -9436
A10: E03 | B10: Education Support Staff | C10: A12080 | D10: Learning Support Assistants Ers NI | E10: S31600 | F10: 2332.52 | G10: 8970 | H10: 0 | I10: 8970 | J10: -6637.48 | K10: 26.00356745 | L10: 0 | M10: -8970
A11: E03 | B11: Education Support Staff | C11: A12115 | D11: Support Worker Ers NI | E11: S31600 | F11: 0 | G11: 591 | H11: 0 | I11: 591 | J11: -591 | K11: 0 | L11: 0 | M11: -591
A12: E03 | B12: Education Support Staff | C12: A13080 | D12: Learning Support Assistants Ers Pens Conts | E12: S31600 | F12: 11035.86 | G12: 46010 | H12: 0 | I12: 46010 | J12: -34974.14 | K12: 23.9857857 | L12: 0 | M12: -46010
A13: E03 | B13: Education Support Staff | C13: A13115 | D13: Support Worker Ers Pension Conts | E13: S31600 | F13: 0 | G13: 2444 | H13: 0 | I13: 2444 | J13: -2444 | K13: 0 | L13: 0 | M13: -2444
A14: E03 | B14: Education Support Staff | C14: A14080 | D14: Learning Support Assistants Allowances | E14: S31600 | F14: 5032.54 | G14: 5800 | H14: 0 | I14: 5800 | J14: -767.46 | K14: 86.76793103 | L14: 0 | M14: -5800
A15: E03 | B15: Education Support Staff | F15: =SUBTOTAL(9, F8:F14) -> 60812.03 | G15: 245092 | H15: 0 | I15: 245092 | J15: -184279.97 | K15: 24.81191961 | L15: 0 | M15: -245092
A16: E04 | B16: Premises Staff | C16: A10105 | D16: Caretakers & Cleaners Basic Pay | E16: S31600 | F16: 10023.42 | G16: 40094 | H16: 0 | I16: 40094 | J16: -30070.58 | K16: 24.99980047 | L16: 0 | M16: -40094
A17: E04 | B17: Premises Staff | C17: A12105 | D17: Caretakers & Cleaners Ers NI | E17: S31600 | F17: 685.48 | G17: 2456 | H17: 0 | I17: 2456 | J17: -1770.52 | K17: 27.91042345 | L17: 0 | M17: -2456
A18: E04 | B18: Premises Staff | C18: A13105 | D18: Caretakers & Cleaners Ers Pension Conts | E18: S31600 | F18: 2650.3 | G18: 10515 | H18: 0 | I18: 10515 | J18: -7864.7 | K18: 25.20494532 | L18: 0 | M18: -10515
A19: E04 | B19: Premises Staff | C19: A14105 | D19: Caretakers & Cleaners Allowances | E19: S31600 | F19: 209.4 | G19: 1400 | H19: 0 | I19: 1400 | J19: -1190.6 | K19: 14.95714286 | L19: 0 | M19: -1400
A20: E04 | B20: Premises Staff | F20: =SUBTOTAL(9, F16:F19) -> 13568.6 | G20: 54465 | H20: 0 | I20: 54465 | J20: -40896.4 | K20: 24.91251262 | L20: 0 | M20: -54465
A21: E05 | B21: Administrative & Clerical Staff | C21: A10120 | D21: Clerk to Governors Basic Pay | E21: S31600 | F21: 426.4 | G21: 1575 | H21: 0 | I21: 1575 | J21: -1148.6 | K21: 27.07301587 | L21: 0 | M21: -1575
A22: E05 | B22: Administrative & Clerical Staff | C22: A10145 | D22: Admin & Professional Basic Pay | E22: S31600 | F22: 16172.18 | G22: 64689 | H22: 0 | I22: 64689 | J22: -48516.82 | K22: 24.99989179 | L22: 0 | M22: -64689
A23: E05 | B23: Administrative & Clerical Staff | C23: A12120 | D23: Clerk to Governors Ers NI | E23: S31600 | F23: 38.25 | G23: 134 | H23: 0 | I23: 134 | J23: -95.75 | K23: 28.54477612 | L23: 0 | M23: -134
A24: E05 | B24: Administrative & Clerical Staff | C24: A12145 | D24: Admin & Professional Ers NI | E24: S31600 | F24: 959.16 | G24: 4048 | H24: 0 | I24: 4048 | J24: -3088.84 | K24: 23.69466403 | L24: 0 | M24: -4048
A25: E05 | B25: Administrative & Clerical Staff | C25: A13120 | D25: Clerk to Governors Ers Pension Conts | E25: S31600 | F25: 110.44 | G25: 408 | H25: 0 | I25: 408 | J25: -297.56 | K25: 27.06862745 | L25: 0 | M25: -408
A26: E05 | B26: Administrative & Clerical Staff | C26: A13145 | D26: Admin & Professional Ers Pension Conts | E26: S31600 | F26: 4188.57 | G26: 16754 | H26: 0 | I26: 16754 | J26: -12565.43 | K26: 25.00041781 | L26: 0 | M26: -16754
A27: E05 | B27: Administrative & Clerical Staff | F27: =SUBTOTAL(9, F21:F26) -> 21895 | G27: 87608 | H27: 0 | I27: 87608 | J27: -65713 | K27: 24.99200986 | L27: 0 | M27: -87608
A28: E07 | B28: Cost of Other Staff | C28: A10090 | D28: Midday Controllers Basic Pay | E28: S31600 | F28: 6714.5 | G28: 30530 | H28: 0 | I28: 30530 | J28: -23815.5 | K28: 21.99312152 | L28: 0 | M28: -30530
A29: E07 | B29: Cost of Other Staff | C29: A12090 | D29: Midday Controllers Ers NI | E29: S31600 | F29: 31.86 | G29: 250 | H29: 0 | I29: 250 | J29: -218.14 | K29: 12.744 | L29: 0 | M29: -250
A30: E07 | B30: Cost of Other Staff | C30: A13090 | D30: Midday Controllers Ers Pension Conts | E30: S31600 | F30: 1817.16 | G30: 8140 | H30: 0 | I30: 8140 | J30: -6322.84 | K30: 22.32383292 | L30: 0 | M30: -8140
A31: E07 | B31: Cost of Other Staff | C31: A14090 | D31: Midday Controllers Allowances | E31: S31600 | F31: 300.88 | G31: 200 | H31: 0 | I31: 200 | J31: 100.88 | K31: 150.44 | L31: 0 | M31: -200
A32: E07 | B32: Cost of Other Staff | C32: R19012 | D32: Recharge - Payroll Split Coding | E32: S31600 | F32: 0 | G32: -17600 | H32: 0 | I32: -17600 | J32: 17600 | K32: 0 | L32: 0 | M32: 17600
A33: E07 | B33: Cost of Other Staff | C33: R44018 | D33: Recharge - Service Provision | E33: S31600 | F33: 508.8 | G33: 1050 | H33: 0 | I33: 1050 | J33: -541.2 | K33: 48.45714286 | L33: 0 | M33: -1050
A34: E07 | B34: Cost of Other Staff | F34: =SUBTOTAL(9, F28:F33) -> 9373.2 | G34: 22570 | H34: 0 | I34: 22570 | J34: -13196.8 | K34: 41.52946389 | L34: 0 | M34: -22570
A35: E08 | B35: Indirect Employee Expenses | C35: A17005 | D35: Advertising - Staff | E35: S31600 | F35: 0 | G35: 140 | H35: 0 | I35: 140 | J35: -140 | K35: 0 | L35: 0 | M35: -140
A36: E08 | B36: Indirect Employee Expenses | C36: A18600 | D36: Schools Apprenticeship Levy | E36: S31600 | F36: 714.32 | G36: 4464 | H36: 0 | I36: 4464 | J36: -3749.68 | K36: 16.00179211 | L36: 0 | M36: -4464
A37: E08 | B37: Indirect Employee Expenses | C37: A34005 | D37: Car Allowances - Payroll | E37: S31600 | F37: 0 | G37: 100 | H37: 0 | I37: 100 | J37: -100 | K37: 0 | L37: 0 | M37: -100
A38: E08 | B38: Indirect Employee Expenses | F38: =SUBTOTAL(9, F35:F37) -> 714.32 | G38: 4704 | H38: 0 | I38: 4704 | J38: -3989.68 | K38: 15.18537415 | L38: 0 | M38: -4704
A39: E09 | B39: Staff Development & Training | C39: A16015 | D39: Staff Training Expenses - Non Payroll | E39: S31600 | F39: 2100 | G39: 5500 | H39: 0 | I39: 5500 | J39: -3400 | K39: 38.18181818 | L39: 0 | M39: -5500
A40: E09 | B40: Staff Development & Training | F40: =SUBTOTAL(9, F39:F39) -> 2100 | G40: 5500 | H40: 0 | I40: 5500 | J40: -3400 | K40: 38.18181818 | L40: 0 | M40: -5500
A41: E10 | B41: Supply Teacher Insurance | C41: R19003 | D41: Recharge - Teaching Sickness Premium | E41: S31600 | F41: 0 | G41: 9897 | H41: 0 | I41: 9897 | J41: -9897 | K41: 0 | L41: 0 | M41: -9897
A42: E10 | B42: Supply Teacher Insurance | F42: =SUBTOTAL(9, F41:F41) -> 0 | G42: 9897 | H42: 0 | I42: 9897 | J42: -9897 | K42: 0 | L42: 0 | M42: -9897
A43: E11 | B43: Staff Related Insurance | C43: R19000 | D43: Recharge - Non-teaching Sickness Premium | E43: S31600 | F43: 0 | G43: 5342 | H43: 0 | I43: 5342 | J43: -5342 | K43: 0 | L43: 0 | M43: -5342
A44: E11 | B44: Staff Related Insurance | F44: =SUBTOTAL(9, F43:F43) -> 0 | G44: 5342 | H44: 0 | I44: 5342 | J44: -5342 | K44: 0 | L44: 0 | M44: -5342
A45: E12 | B45: Building Maintenance & Improvement | C45: A20005 | D45: Property Repairs, Maintenance & Alterations | E45: S31600 | F45: 7155.57 | G45: 15000 | H45: 0 | I45: 15000 | J45: -7844.43 | K45: 47.7038 | L45: 0 | M45: -15000
A46: E12 | B46: Building Maintenance & Improvement | F46: =SUBTOTAL(9, F45:F45) -> 7155.57 | G46: 15000 | H46: 0 | I46: 15000 | J46: -7844.43 | K46: 47.7038 | L46: 0 | M46: -15000
A47: E13 | B47: Grounds Maintenance & Improvement | C47: A27505 | D47: Upkeep of Grounds | E47: S31600 | F47: 941.55 | G47: 3600 | H47: 0 | I47: 3600 | J47: -2658.45 | K47: 26.15416667 | L47: 0 | M47: -3600
A48: E13 | B48: Grounds Maintenance & Improvement | F48: =SUBTOTAL(9, F47:F47) -> 941.55 | G48: 3600 | H48: 0 | I48: 3600 | J48: -2658.45 | K48: 26.15416667 | L48: 0 | M48: -3600
A49: E14 | B49: Cleaning & Caretaking | C49: A27005 | D49: Window Cleaning | E49: S31600 | F49: 80 | G49: 400 | H49: 0 | I49: 400 | J49: -320 | K49: 20 | L49: 0 | M49: -400
A50: E14 | B50: Cleaning & Caretaking | F50: =SUBTOTAL(9, F49:F49) -> 80 | G50: 400 | H50: 0 | I50: 400 | J50: -320 | K50: 20 | L50: 0 | M50: -400
A51: E15 | B51: Water & Sewerage | C51: A24005 | D51: Property Related Water Services | E51: S31600 | F51: 1597.71 | G51: 6581 | H51: 0 | I51: 6581 | J51: -4983.29 | K51: 24.27761738 | L51: 0 | M51: -6581
A52: E15 | B52: Water & Sewerage | F52: =SUBTOTAL(9, F51:F51) -> 1597.71 | G52: 6581 | H52: 0 | I52: 6581 | J52: -4983.29 | K52: 24.27761738 | L52: 0 | M52: -6581
A53: E16 | B53: Energy | C53: A21005 | D53: Electricity | E53: S31600 | F53: 994.52 | G53: 9800 | H53: 0 | I53: 9800 | J53: -8805.48 | K53: 10.14816327 | L53: 0 | M53: -9800
A54: E16 | B54: Energy | C54: A21010 | D54: Gas | E54: S31600 | F54: 477.68 | G54: 5000 | H54: 0 | I54: 5000 | J54: -4522.32 | K54: 9.5536 | L54: 0 | M54: -5000
A55: E16 | B55: Energy | F55: =SUBTOTAL(9, F53:F54) -> 1472.2 | G55: 14800 | H55: 0 | I55: 14800 | J55: -13327.8 | K55: 9.947297297 | L55: 0 | M55: -14800
A56: E17 | B56: Rates | C56: A23005 | D56: Rates | E56: S31600 | F56: 26880 | G56: 26880 | H56: 0 | I56: 26880 | J56: 0 | K56: 100 | L56: 0 | M56: -26880
A57: E17 | B57: Rates | F57: =SUBTOTAL(9, F56:F56) -> 26880 | G57: 26880 | H57: 0 | I57: 26880 | J57: 0 | K57: 100 | L57: 0 | M57: -26880
A58: E18 | B58: Other Occupation Costs | C58: A27015 | D58: Refuse Collection | E58: S31600 | F58: 365.22 | G58: 1542 | H58: 0 | I58: 1542 | J58: -1176.78 | K58: 23.6848249 | L58: 0 | M58: -1542
A59: E18 | B59: Other Occupation Costs | C59: A27020 | D59: Cleaning Materials | E59: S31600 | F59: 567.5 | G59: 3000 | H59: 0 | I59: 3000 | J59: -2432.5 | K59: 18.91666667 | L59: 0 | M59: -3000
A60: E18 | B60: Other Occupation Costs | C60: A29015 | D60: Other Premises Costs | E60: S31600 | F60: 1700.92 | G60: 2200 | H60: 0 | I60: 2200 | J60: -499.08 | K60: 77.31454545 | L60: 0 | M60: -2200
A61: E18 | B61: Other Occupation Costs | C61: A40040 | D61: First Aid Equipment | E61: S31600 | F61: 173.66 | G61: 500 | H61: 0 | I61: 500 | J61: -326.34 | K61: 34.732 | L61: 0 | M61: -500
A62: E18 | B62: Other Occupation Costs | C62: A40080 | D62: Health & Safety Equipment | E62: S31600 | F62: 259.19 | G62: 500 | H62: 0 | I62: 500 | J62: -240.81 | K62: 51.838 | L62: 0 | M62: -500
A63: E18 | B63: Other Occupation Costs | F63: =SUBTOTAL(9, F58:F62) -> 3066.49 | G63: 7742 | H63: 0 | I63: 7742 | J63: -4675.51 | K63: 39.6084991 | L63: 0 | M63: -7742
A64: E19 | B64: Learning Resources | C64: A40020 | D64: Equipment & Materials Child Related | E64: S31600 | F64: 1308.69 | G64: 19200 | H64: 0 | I64: 19200 | J64: -17891.31 | K64: 6.81609375 | L64: 0 | M64: -19200
A65: E19 | B65: Learning Resources | C65: A40045 | D65: Furniture | E65: S31600 | F65: 240 | G65: 2000 | H65: 0 | I65: 2000 | J65: -1760 | K65: 12 | L65: 0 | M65: -2000
A66: E19 | B66: Learning Resources | C66: A40050 | D66: Books | E66: S31600 | F66: 633.96 | G66: 800 | H66: 0 | I66: 800 | J66: -166.04 | K66: 79.245 | L66: 0 | M66: -800
A67: E19 | B67: Learning Resources | C67: A40070 | D67: Stock Materials | E67: S31600 | F67: 657.91 | G67: 4000 | H67: 0 | I67: 4000 | J67: -3342.09 | K67: 16.44775 | L67: 0 | M67: -4000
A68: E19 | B68: Learning Resources | C68: A43005 | D68: Photocopying | E68: S31600 | F68: 1974.7 | G68: 8500 | H68: 0 | I68: 8500 | J68: -6525.3 | K68: =IFERROR(F68/I68,0)*100 -> 23.23176471 | L68: 0 | M68: -8500
A69: E19 | B69: Learning Resources | C69: A47010 | D69: Subscriptions (non staff) | E69: S31600 | F69: 239 | G69: 800 | H69: 0 | I69: 800 | J69: -561 | K69: 29.875 | L69: 0 | M69: -800
A70: E19 | B70: Learning Resources | C70: A49080 | D70: Educational Visits & Other Expenditure | E70: S31600 | F70: 0 | G70: 7800 | H70: 0 | I70: 7800 | J70: -7800 | K70: 0 | L70: 0 | M70: -7800
A71: E19 | B71: Learning Resources | F71: =SUBTOTAL(9, F64:F70) -> 5054.26 | G71: 43100 | H71: 0 | I71: 43100 | J71: -38045.74 | K71: 11.72682135 | L71: 0 | M71: -43100
A72: E20 | B72: ICT Learning Resources | C72: A45005 | D72: Computer Hardware | E72: S31600 | F72: 2066.21 | G72: 8000 | H72: 0 | I72: 8000 | J72: -5933.79 | K72: 25.827625 | L72: 0 | M72: -8000
A73: E20 | B73: ICT Learning Resources | C73: A45035 | D73: Computer Services | E73: S31600 | F73: 10582.89 | G73: 13500 | H73: 0 | I73: 13500 | J73: -2917.11 | K73: 78.39177778 | L73: 0 | M73: -13500
A74: E20 | B74: ICT Learning Resources | C74: A45040 | D74: Computer Software | E74: S31600 | F74: 9305.48 | G74: 12737 | H74: 0 | I74: 12737 | J74: -3431.52 | K74: 73.05864803 | L74: 0 | M74: -12737
A75: E20 | B75: ICT Learning Resources | F75: =SUBTOTAL(9, F72:F74) -> 21954.58 | G75: 34237 | H75: 0 | I75: 34237 | J75: -12282.42 | K75: 64.12530303 | L75: 0 | M75: -34237
A76: E22 | B76: Administrative Supplies | C76: A40015 | D76: Equipment & Materials Admin | E76: S31600 | F76: 72.57 | G76: 800 | H76: 0 | I76: 800 | J76: -727.43 | K76: 9.07125 | L76: 0 | M76: -800
A77: E22 | B77: Administrative Supplies | C77: A45015 | D77: Postages | E77: S31600 | F77: 71.17 | G77: 200 | H77: 0 | I77: 200 | J77: -128.83 | K77: 35.585 | L77: 0 | M77: -200
A78: E22 | B78: Administrative Supplies | C78: A45020 | D78: Telephones | E78: S31600 | F78: 774.46 | G78: 2200 | H78: 0 | I78: 2200 | J78: -1425.54 | K78: 35.20272727 | L78: 0 | M78: -2200
A79: E22 | B79: Administrative Supplies | C79: A49075 | D79: Licences - General | E79: S31600 | F79: 500 | G79: 460 | H79: 0 | I79: 460 | J79: 40 | K79: 108.6956522 | L79: 0 | M79: -460
A80: E22 | B80: Administrative Supplies | F80: =SUBTOTAL(9, F76:F79) -> 1418.2 | G80: 3660 | H80: 0 | I80: 3660 | J80: -2241.8 | K80: 38.74863388 | L80: 0 | M80: -3660
A81: E23 | B81: Other Insurance Premiums | C81: A49025 | D81: General Insurance | E81: S31600 | F81: 0 | G81: 11985 | H81: 0 | I81: 11985 | J81: -11985 | K81: 0 | L81: 0 | M81: -11985
A82: E23 | B82: Other Insurance Premiums | F82: =SUBTOTAL(9, F81:F81) -> 0 | G82: 11985 | H82: 0 | I82: 11985 | J82: -11985 | K82: 0 | L82: 0 | M82: -11985
A83: E24 | B83: Special Facilities | C83: A42005 | D83: Clothing & Uniforms | E83: S31600 | F83: 0 | G83: 750 | H83: 0 | I83: 750 | J83: -750 | K83: 0 | L83: 0 | M83: -750
A84: E24 | B84: Special Facilities | C84: A60010 | D84: Tuition &/or Board Fees | E84: S31600 | F84: 0 | G84: 2600 | H84: 0 | I84: 2600 | J84: -2600 | K84: 0 | L84: 0 | M84: -2600
A85: E24 | B85: Special Facilities | C85: R44009 | D85: Recharge - Specialist Teaching & Applied Psychology (STAPS) Buy-Back & Assessments | E85: S31600 | F85: 1035 | G85: 0 | H85: 0 | I85: 0 | J85: 1035 | K85: 0 | L85: 0 | M85: 0
A86: E24 | B86: Special Facilities | F86: =SUBTOTAL(9, F83:F85) -> 1035 | G86: 3350 | H86: 0 | I86: 3350 | J86: -2315 | K86: 30.89552239 | L86: 0 | M86: -3350
A87: E25 | B87: Catering Supplies | C87: A41010 | D87: Free Meals | E87: S31600 | F87: 12359.49 | G87: 20000 | H87: 0 | I87: 20000 | J87: -7640.51 | K87: 61.79745 | L87: 0 | M87: -20000
A88: E25 | B88: Catering Supplies | C88: A41020 | D88: Paid School Meals | E88: S31600 | F88: 2658 | G88: 10000 | H88: 0 | I88: 10000 | J88: -7342 | K88: 26.58 | L88: 0 | M88: -10000
A89: E25 | B89: Catering Supplies | C89: A44030 | D89: Provisions | E89: S31600 | F89: 55.08 | G89: 0 | H89: 0 | I89: 0 | J89: 55.08 | K89: 0 | L89: 0 | M89: 0
A90: E25 | B90: Catering Supplies | F90: =SUBTOTAL(9, F87:F89) -> 15072.57 | G90: 30000 | H90: 0 | I90: 30000 | J90: -14927.43 | K90: 50.2419 | L90: 0 | M90: -30000
A91: E26 | B91: Agency Supply Teaching Staff | C91: A11005 | D91: Agency Supply Teacher | E91: S31600 | F91: 2269.75 | G91: 7500 | H91: 0 | I91: 7500 | J91: -5230.25 | K91: 30.26333333 | L91: 0 | M91: -7500
A92: E26 | B92: Agency Supply Teaching Staff | F92: =SUBTOTAL(9, F91:F91) -> 2269.75 | G92: 7500 | H92: 0 | I92: 7500 | J92: -5230.25 | K92: 30.26333333 | L92: 0 | M92: -7500
A93: E27 | B93: Bought-In Professional Services - Curriculum | C93: A44060 | D93: Consultancy Services - Curriculum | E93: S31600 | F93: 1200 | G93: 3255 | H93: 0 | I93: 3255 | J93: -2055 | K93: 36.86635945 | L93: 0 | M93: -3255
A94: E27 | B94: Bought-In Professional Services - Curriculum | F94: =SUBTOTAL(9, F93:F93) -> 1200 | G94: 3255 | H94: 0 | I94: 3255 | J94: -2055 | K94: 36.86635945 | L94: 0 | M94: -3255
A95: E28 | B95: Bought-In Professional Services - Other | C95: A44150 | D95: Schools Buy Back | E95: S31600 | F95: 1750 | G95: 1750 | H95: 0 | I95: 1750 | J95: 0 | K95: 100 | L95: 0 | M95: -1750
A96: E28 | B96: Bought-In Professional Services - Other | C96: A44910 | D96: Bought in Services - Other - Schools | E96: S31600 | F96: 2880.9 | G96: 6241 | H96: 0 | I96: 6241 | J96: -3360.1 | K96: 46.16087166 | L96: 0 | M96: -6241
A97: E28 | B97: Bought-In Professional Services - Other | C97: R49001 | D97: Recharge - Finance Buy-Back | E97: S31600 | F97: 4374.88 | G97: 4375 | H97: 0 | I97: 4375 | J97: -0.12 | K97: 99.99725714 | L97: 0 | M97: -4375
A98: E28 | B98: Bought-In Professional Services - Other | C98: R49012 | D98: Recharge - Schools HR Advisory & Employee Counselling Buy-Back | E98: S31600 | F98: 0 | G98: 2675 | H98: 0 | I98: 2675 | J98: -2675 | K98: 0 | L98: 0 | M98: -2675
A99: E28 | B99: Bought-In Professional Services - Other | F99: =SUBTOTAL(9, F95:F98) -> 9005.78 | G99: 15041 | H99: 0 | I99: 15041 | J99: -6035.22 | K99: 59.87487534 | L99: 0 | M99: -15041
A100: I03 | B100: High Needs Top Up Funding | C100: R93017 | D100: Recharge - High Needs Top-Up Funding | E100: S31600 | F100: -11443.77 | G100: -45775 | H100: 0 | I100: -45775 | J100: 34331.23 | K100: 25.00004369 | L100: 0 | M100: 45775
A101: I03 | B101: High Needs Top Up Funding | F101: =SUBTOTAL(9, F100:F100) -> -11443.77 | G101: -45775 | H101: 0 | I101: -45775 | J101: 34331.23 | K101: 25.00004369 | L101: 0 | M101: 45775
A102: I08B | B102: Other Income from Facilities and Services | C102: A91095 | D102: Income from External Bodies | E102: S31600 | F102: 0 | G102: -2600 | H102: 0 | I102: -2600 | J102: 2600 | K102: 0 | L102: 0 | M102: 2600
A103: I08B | B103: Other Income from Facilities and Services | C103: A92010 | D103: Sale of Products | E103: S31600 | F103: -219.05 | G103: 0 | H103: 0 | I103: 0 | J103: -219.05 | K103: 0 | L103: 0 | M103: 0
A104: I08B | B104: Other Income from Facilities and Services | C104: A92040 | D104: Service Charges | E104: S31600 | F104: 0 | G104: -1800 | H104: 0 | I104: -1800 | J104: 1800 | K104: 0 | L104: 0 | M104: 1800
A105: I08B | B105: Other Income from Facilities and Services | F105: =SUBTOTAL(9, F102:F104) -> -219.05 | G105: -4400 | H105: 0 | I105: -4400 | J105: 4180.95 | K105: 4.978409091 | L105: 0 | M105: 4400
A106: I09 | B106: Income from Catering | C106: A92020 | D106: Sale of Meals | E106: S31600 | F106: -2246.4 | G106: -10000 | H106: 0 | I106: -10000 | J106: 7753.6 | K106: 22.464 | L106: 0 | M106: 10000
A107: I09 | B107: Income from Catering | F107: =SUBTOTAL(9, F106:F106) -> -2246.4 | G107: -10000 | H107: 0 | I107: -10000 | J107: 7753.6 | K107: 22.464 | L107: 0 | M107: 10000
A108: I12 | B108: Income from Contributions to Visits | C108: A93185 | D108: Parental contributions towards visits | E108: S31600 | F108: 0 | G108: -7425 | H108: 0 | I108: -7425 | J108: 7425 | K108: 0 | L108: 0 | M108: 7425
A109: I12 | B109: Income from Contributions to Visits | F109: =SUBTOTAL(9, F108:F108) -> 0 | G109: -7425 | H109: 0 | I109: -7425 | J109: 7425 | K109: 0 | L109: 0 | M109: 7425
A110: I18 | B110: Additional Grant for Schools | C110: R93021 | D110: Recharge - Additional Grant For Schools | E110: S31600 | F110: -13925 | G110: -13021 | H110: 0 | I110: -13021 | J110: -904 | K110: 106.9426311 | L110: 0 | M110: 13021
A111: I18 | B111: Additional Grant for Schools | F111: =SUBTOTAL(9, F110:F110) -> -13925 | G111: -13021 | H111: 0 | I111: -13021 | J111: -904 | K111: 106.9426311 | L111: 0 | M111: 13021
A112: I99 | B112: Contingency | C112: A48010 | D112: Contingency/ Reserve Transfers (Budget Only) | E112: S31600 | F112: 0 | G112: 59184 | H112: 0 | I112: 59184 | J112: -59184 | K112: 0 | L112: 0 | M112: -59184
A113: I99 | B113: Contingency | C113: A48015 | D113: Schools Carry Forward (Budget Only) | E113: S31600 | F113: 0 | G113: -71383 | H113: 8502 | I113: -62881 | J113: 62881 | K113: 0 | L113: 0 | M113: 62881
A114: I99 | B114: Contingency | F114: =SUBTOTAL(9, F112:F113) -> 0 | G114: -12199 | H114: 8502 | I114: -3697 | J114: 3697 | K114: 0 | L114: 0 | M114: 3697
F115: =SUBTOTAL(9, F3:F114) -> 360715.81 | G115: 1332065 | H115: 8502 | I115: 1340567 | J115: -979851.19 | K115: 26.90770472 | L115: 0 | M115: -1340567

Sheet Appendix 2- Actuals for Grants
G1: Actuals for Grants as at 09/07/2021
A2: Cfr2 | B2: Cfr2 (T) | C2: Account | D2: Account (T) | E2: Costc | F2: Schdept | G2: Schdept (T) | H2: Actuals | I2: Original Budget | J2: Virements | K2: Revised Budget | L2: Variance (Actuals-Revised Budget) | M2: % Spent | N2: Current Mth Forecast | O2: Forecast Variance | P2: Links to reports
A3: E01 | B3: Teaching Staff | C3: A10005 | D3: Teachers Basic Pay | E3: S316AA | F3: G013 | G3: Pupil Premium | H3: 4160.4 | I3: 6934 | J3: 0 | K3: 6934 | L3: -2773.6 | M3: =IFERROR(H3/K3,0)*100 -> 60 | N3: 0 | O3: -6934
A4: E01 | B4: Teaching Staff | C4: A12005 | D4: Teachers Ers NI | E4: S316AA | F4: G013 | G4: Pupil Premium | H4: 597.37 | I4: 754 | J4: 0 | K4: 754 | L4: -156.63 | M4: =IFERROR(H4/K4,0)*100 -> 79.22679045 | N4: 0 | O4: -754
A5: E01 | B5: Teaching Staff | C5: A13005 | D5: Teachers Ers Pension Conts | E5: S316AA | F5: G013 | G5: Pupil Premium | H5: 1548.64 | I5: 2166 | J5: 0 | K5: 2166 | L5: -617.36 | M5: 71.4976916 | N5: 0 | O5: -2166
A6: E01 | B6: Teaching Staff | C6: A14005 | D6: Teachers Allowances | E6: S316AA | F6: G013 | G6: Pupil Premium | H6: 1853.17 | I6: 4712 | J6: 0 | K6: 4712 | L6: -2858.83 | M6: 39.32873514 | N6: 0 | O6: -4712
A7: E01 | B7: Teaching Staff | E7: S316AA | H7: =SUBTOTAL(9, H3:H6) -> 8159.58 | I7: 14566 | J7: 0 | K7: 14566 | L7: -6406.42 | M7: 56.01798709 | N7: 0 | O7: -14566
A8: E03 | B8: Education Support Staff | C8: A10080 | D8: Learning Support Assistants Basic Pay | E8: S316AA | F8: G013 | G8: Pupil Premium | H8: 10575.75 | I8: 50986 | J8: 0 | K8: 50986 | L8: -40410.25 | M8: 20.74245871 | N8: 0 | O8: -50986
A9: E03 | B9: Education Support Staff | C9: A12080 | D9: Learning Support Assistants Ers NI | E9: S316AA | F9: G013 | G9: Pupil Premium | H9: 544.09 | I9: 3173 | J9: 0 | K9: 3173 | L9: -2628.91 | M9: 17.14749448 | N9: 0 | O9: -3173
A10: E03 | B10: Education Support Staff | C10: A13080 | D10: Learning Support Assistants Ers Pens Conts | E10: S316AA | F10: G013 | G10: Pupil Premium | H10: 2739.12 | I10: 13205 | J10: 0 | K10: 13205 | L10: -10465.88 | M10: 20.74305187 | N10: 0 | O10: -13205
A11: E03 | B11: Education Support Staff | E11: S316AA | H11: =SUBTOTAL(9, H8:H10) -> 13858.96 | I11: 67364 | J11: 0 | K11: 67364 | L11: -53505.04 | M11: 20.57324387 | N11: 0 | O11: -67364
A12: E07 | B12: Cost of Other Staff | C12: R19012 | D12: Recharge - Payroll Split Coding | E12: S316AA | F12: G013 | G12: Pupil Premium | H12: 0 | I12: 16493 | J12: 0 | K12: 16493 | L12: -16493 | M12: 0 | N12: 0 | O12: -16493
A13: E07 | B13: Cost of Other Staff | E13: S316AA | H13: =SUBTOTAL(9, H12:H12) -> 0 | I13: 16493 | J13: 0 | K13: 16493 | L13: -16493 | M13: 0 | N13: 0 | O13: -16493
A14: E08 | B14: Indirect Employee Expenses | C14: A18600 | D14: Schools Apprenticeship Levy | E14: S316AA | F14: G013 | G14: Pupil Premium | H14: 61.18 | I14: 458 | J14: 0 | K14: 458 | L14: -396.82 | M14: 13.3580786 | N14: 0 | O14: -458
A15: E08 | B15: Indirect Employee Expenses | E15: S316AA | H15: =SUBTOTAL(9, H14:H14) -> 61.18 | I15: 458 | J15: 0 | K15: 458 | L15: -396.82 | M15: 13.3580786 | N15: 0 | O15: -458
A16: E09 | B16: Staff Development & Training | C16: A16015 | D16: Staff Training Expenses - Non Payroll | E16: S316AA | F16: G013 | G16: Pupil Premium | H16: 0 | I16: 350 | J16: 0 | K16: 350 | L16: -350 | M16: 0 | N16: 0 | O16: -350
A17: E09 | B17: Staff Development & Training | E17: S316AA | H17: =SUBTOTAL(9, H16:H16) -> 0 | I17: 350 | J17: 0 | K17: 350 | L17: -350 | M17: 0 | N17: 0 | O17: -350
A18: E19 | B18: Learning Resources | C18: A40005 | D18: Equipment & Materials Learning | E18: S316AA | F18: G013 | G18: Pupil Premium | H18: 0 | I18: 250 | J18: 0 | K18: 250 | L18: -250 | M18: 0 | N18: 0 | O18: -250
A19: E19 | B19: Learning Resources | C19: A49080 | D19: Educational Visits & Other Expenditure | E19: S316AA | F19: G013 | G19: Pupil Premium | H19: 0 | I19: 200 | J19: 0 | K19: 200 | L19: -200 | M19: 0 | N19: 0 | O19: -200
A20: E19 | B20: Learning Resources | E20: S316AA | H20: =SUBTOTAL(9, H18:H19) -> 0 | I20: 450 | J20: 0 | K20: 450 | L20: -450 | M20: 0 | N20: 0 | O20: -450
A21: E24 | B21: Special Facilities | C21: R44009 | D21: Recharge - Specialist Teaching & Applied Psychology (STAPS) Buy-Back & Assessments | E21: S316AA | F21: G013 | G21: Pupil Premium | H21: 0 | I21: 975 | J21: 0 | K21: 975 | L21: -975 | M21: 0 | N21: 0 | O21: -975
A22: E24 | B22: Special Facilities | E22: S316AA | H22: =SUBTOTAL(9, H21:H21) -> 0 | I22: 975 | J22: 0 | K22: 975 | L22: -975 | M22: 0 | N22: 0 | O22: -975
A23: E25 | B23: Catering Supplies | C23: A44035 | D23: Free Milk | E23: S316AA | F23: G013 | G23: Pupil Premium | H23: 99.44 | I23: 0 | J23: 0 | K23: 0 | L23: 99.44 | M23: 0 | N23: 0 | O23: 0
A24: E25 | B24: Catering Supplies | E24: S316AA | H24: =SUBTOTAL(9, H23:H23) -> 99.44 | I24: 0 | J24: 0 | K24: 0 | L24: 99.44 | M24: 0 | N24: 0 | O24: 0
A25: E28 | B25: Bought-In Professional Services - Other | C25: A44065 | D25: Consultancy Services - Other | E25: S316AA | F25: G013 | G25: Pupil Premium | H25: 0 | I25: 600 | J25: 0 | K25: 600 | L25: -600 | M25: 0 | N25: 0 | O25: -600
A26: E28 | B26: Bought-In Professional Services - Other | C26: A44910 | D26: Bought in Services - Other - Schools | E26: S316AA | F26: G013 | G26: Pupil Premium | H26: 0 | I26: 2000 | J26: 0 | K26: 2000 | L26: -2000 | M26: 0 | N26: 0 | O26: -2000
A27: E28 | B27: Bought-In Professional Services - Other | E27: S316AA | H27: =SUBTOTAL(9, H25:H26) -> 0 | I27: 2600 | J27: 0 | K27: 2600 | L27: -2600 | M27: 0 | N27: 0 | O27: -2600
A28: I05 | B28: Pupil Premium | C28: R93018 | D28: Recharge - Pupil Premium | E28: S316AA | F28: G013 | G28: Pupil Premium | H28: 0 | I28: -104910 | J28: 0 | K28: -104910 | L28: 104910 | M28: 0 | N28: 0 | O28: 104910
A29: I05 | B29: Pupil Premium | E29: S316AA | H29: =SUBTOTAL(9, H28:H28) -> 0 | I29: -104910 | J29: 0 | K29: -104910 | L29: 104910 | M29: 0 | N29: 0 | O29: 104910
A30: I99 | B30: Contingency | C30: A48010 | D30: Contingency/ Reserve Transfers (Budget Only) | E30: S316AA | F30: G013 | G30: Pupil Premium | H30: 0 | I30: 5889 | J30: 0 | K30: 5889 | L30: -5889 | M30: 0 | N30: 0 | O30: -5889
A31: I99 | B31: Contingency | C31: A48015 | D31: Schools Carry Forward (Budget Only) | E31: S316AA | F31: G013 | G31: Pupil Premium | H31: 0 | I31: -4235 | J31: 4235 | K31: 0 | L31: 0 | M31: 0 | N31: 0 | O31: 0
A32: I99 | B32: Contingency | E32: S316AA | H32: =SUBTOTAL(9, H30:H31) -> 0 | I32: 1654 | J32: 4235 | K32: 5889 | L32: -5889 | M32: 0 | N32: 0 | O32: -5889
E33: S316AA | H33: =SUBTOTAL(9, H3:H32) -> 22179.16 | I33: 0 | J33: 4235 | K33: 4235 | L33: 17944.16 | M33: 523.7109799 | N33: 0 | O33: -4235
A34: I05 | B34: Pupil Premium | C34: R93018 | D34: Recharge - Pupil Premium | E34: S316AB | F34: G016 | G34: Pupil Premium Service Children | H34: 0 | I34: -310 | J34: 0 | K34: -310 | L34: 310 | M34: 0 | N34: 0 | O34: 310
A35: I05 | B35: Pupil Premium | E35: S316AB | H35: =SUBTOTAL(9, H34:H34) -> 0 | I35: -310 | J35: 0 | K35: -310 | L35: 310 | M35: 0 | N35: 0 | O35: 310
A36: I99 | B36: Contingency | C36: A48010 | D36: Contingency/ Reserve Transfers (Budget Only) | E36: S316AB | F36: G016 | G36: Pupil Premium Service Children | H36: 0 | I36: 1039 | J36: 0 | K36: 1039 | L36: -1039 | M36: 0 | N36: 0 | O36: -1039
A37: I99 | B37: Contingency | C37: A48015 | D37: Schools Carry Forward (Budget Only) | E37: S316AB | F37: G016 | G37: Pupil Premium Service Children | H37: 0 | I37: -729 | J37: 729 | K37: 0 | L37: 0 | M37: 0 | N37: 0 | O37: 0
A38: I99 | B38: Contingency | E38: S316AB | H38: =SUBTOTAL(9, H36:H37) -> 0 | I38: 310 | J38: 729 | K38: 1039 | L38: -1039 | M38: 0 | N38: 0 | O38: -1039
E39: S316AB | H39: =SUBTOTAL(9, H34:H38) -> 0 | I39: 0 | J39: 729 | K39: 729 | L39: -729 | M39: 0 | N39: 0 | O39: -729
A40: E19 | B40: Learning Resources | C40: A49080 | D40: Educational Visits & Other Expenditure | E40: S316AC | F40: G014 | G40: Pupil Premium Looked After Children | H40: 0 | I40: 100 | J40: 0 | K40: 100 | L40: -100 | M40: 0 | N40: 0 | O40: -100
A41: E19 | B41: Learning Resources | E41: S316AC | H41: =SUBTOTAL(9, H40:H40) -> 0 | I41: 100 | J41: 0 | K41: 100 | L41: -100 | M41: 0 | N41: 0 | O41: -100
A42: E20 | B42: ICT Learning Resources | C42: A45005 | D42: Computer Hardware | E42: S316AC | F42: G014 | G42: Pupil Premium Looked After Children | H42: 458 | I42: 518 | J42: 0 | K42: 518 | L42: -60 | M42: 88.41698842 | N42: 0 | O42: -518
A43: E20 | B43: ICT Learning Resources | C43: A45035 | D43: Computer Services | E43: S316AC | F43: G014 | G43: Pupil Premium Looked After Children | H43: 60 | I43: 0 | J43: 0 | K43: 0 | L43: 60 | M43: 0 | N43: 0 | O43: 0
A44: E20 | B44: ICT Learning Resources | C44: A45040 | D44: Computer Software | E44: S316AC | F44: G014 | G44: Pupil Premium Looked After Children | H44: 4460 | I44: 4460 | J44: 0 | K44: 4460 | L44: 0 | M44: 100 | N44: 0 | O44: -4460
A45: E20 | B45: ICT Learning Resources | E45: S316AC | H45: =SUBTOTAL(9, H42:H44) -> 4978 | I45: 4978 | J45: 0 | K45: 4978 | L45: 0 | M45: 100 | N45: 0 | O45: -4978
A46: E28 | B46: Bought-In Professional Services - Other | C46: A44910 | D46: Bought in Services - Other - Schools | E46: S316AC | F46: G014 | G46: Pupil Premium Looked After Children | H46: 455 | I46: 1000 | J46: 0 | K46: 1000 | L46: -545 | M46: 45.5 | N46: 0 | O46: -1000
A47: E28 | B47: Bought-In Professional Services - Other | E47: S316AC | H47: =SUBTOTAL(9, H46:H46) -> 455 | I47: 1000 | J47: 0 | K47: 1000 | L47: -545 | M47: 45.5 | N47: 0 | O47: -1000
A48: I05 | B48: Pupil Premium | C48: R93018 | D48: Recharge - Pupil Premium | E48: S316AC | F48: G014 | G48: Pupil Premium Looked After Children | H48: -2000 | I48: -5000 | J48: 0 | K48: -5000 | L48: 3000 | M48: 40 | N48: 0 | O48: 5000
A49: I05 | B49: Pupil Premium | E49: S316AC | H49: =SUBTOTAL(9, H48:H48) -> -2000 | I49: -5000 | J49: 0 | K49: -5000 | L49: 3000 | M49: 40 | N49: 0 | O49: 5000
A50: I99 | B50: Contingency | C50: A48010 | D50: Contingency/ Reserve Transfers (Budget Only) | E50: S316AC | F50: G014 | G50: Pupil Premium Looked After Children | H50: 0 | I50: 3382 | J50: 0 | K50: 3382 | L50: -3382 | M50: 0 | N50: 0 | O50: -3382
A51: I99 | B51: Contingency | C51: A48015 | D51: Schools Carry Forward (Budget Only) | E51: S316AC | F51: G014 | G51: Pupil Premium Looked After Children | H51: 0 | I51: -4460 | J51: 4460 | K51: 0 | L51: 0 | M51: 0 | N51: 0 | O51: 0
A52: I99 | B52: Contingency | E52: S316AC | H52: =SUBTOTAL(9, H50:H51) -> 0 | I52: -1078 | J52: 4460 | K52: 3382 | L52: -3382 | M52: 0 | N52: 0 | O52: -3382
E53: S316AC | H53: =SUBTOTAL(9, H40:H52) -> 3433 | I53: 0 | J53: 4460 | K53: 4460 | L53: -1027 | M53: 76.97309417 | N53: 0 | O53: -4460
A54: E07 | B54: Cost of Other Staff | C54: R19012 | D54: Recharge - Payroll Split Coding | E54: S316AF | F54: G015 | G54: Pupil Premium Post Looked After Children | H54: 0 | I54: -16493 | J54: 0 | K54: -16493 | L54: 16493 | M54: 0 | N54: 0 | O54: 16493
A55: E07 | B55: Cost of Other Staff | E55: S316AF | H55: =SUBTOTAL(9, H54:H54) -> 0 | I55: -16493 | J55: 0 | K55: -16493 | L55: 16493 | M55: 0 | N55: 0 | O55: 16493
A56: E19 | B56: Learning Resources | C56: A49080 | D56: Educational Visits & Other Expenditure | E56: S316AF | F56: G015 | G56: Pupil Premium Post Looked After Children | H56: 0 | I56: 100 | J56: 0 | K56: 100 | L56: -100 | M56: 0 | N56: 0 | O56: -100
A57: E19 | B57: Learning Resources | E57: S316AF | H57: =SUBTOTAL(9, H56:H56) -> 0 | I57: 100 | J57: 0 | K57: 100 | L57: -100 | M57: 0 | N57: 0 | O57: -100
A58: I05 | B58: Pupil Premium | C58: R93018 | D58: Recharge - Pupil Premium | E58: S316AF | F58: G015 | G58: Pupil Premium Post Looked After Children | H58: 0 | I58: -4690 | J58: 0 | K58: -4690 | L58: 4690 | M58: 0 | N58: 0 | O58: 4690
A59: I05 | B59: Pupil Premium | E59: S316AF | H59: =SUBTOTAL(9, H58:H58) -> 0 | I59: -4690 | J59: 0 | K59: -4690 | L59: 4690 | M59: 0 | N59: 0 | O59: 4690
A60: I99 | B60: Contingency | C60: A48010 | D60: Contingency/ Reserve Transfers (Budget Only) | E60: S316AF | F60: G015 | G60: Pupil Premium Post Looked After Children | H60: 0 | I60: 22959 | J60: 0 | K60: 22959 | L60: -22959 | M60: 0 | N60: 0 | O60: -22959
A61: I99 | B61: Contingency | C61: A48015 | D61: Schools Carry Forward (Budget Only) | E61: S316AF | F61: G015 | G61: Pupil Premium Post Looked After Children | H61: 0 | I61: -1876 | J61: 1876 | K61: 0 | L61: 0 | M61: 0 | N61: 0 | O61: 0
A62: I99 | B62: Contingency | E62: S316AF | H62: =SUBTOTAL(9, H60:H61) -> 0 | I62: 21083 | J62: 1876 | K62: 22959 | L62: -22959 | M62: 0 | N62: 0 | O62: -22959
E63: S316AF | H63: =SUBTOTAL(9, H54:H62) -> 0 | I63: 0 | J63: 1876 | K63: 1876 | L63: -1876 | M63: 0 | N63: 0 | O63: -1876
A64: E03 | B64: Education Support Staff | C64: A10080 | D64: Learning Support Assistants Basic Pay | E64: S316BA | F64: G011 | G64: PE & Sport Grant | H64: 1904.04 | I64: 3173 | J64: 0 | K64: 3173 | L64: -1268.96 | M64: 60.00756382 | N64: 0 | O64: -3173
A65: E03 | B65: Education Support Staff | C65: A13080 | D65: Learning Support Assistants Ers Pens Conts | E65: S316BA | F65: G011 | G65: PE & Sport Grant | H65: 539.37 | I65: 899 | J65: 0 | K65: 899 | L65: -359.63 | M65: 59.99666296 | N65: 0 | O65: -899
A66: E03 | B66: Education Support Staff | C66: A14080 | D66: Learning Support Assistants Allowances | E66: S316BA | F66: G011 | G66: PE & Sport Grant | H66: 178.5 | I66: 298 | J66: 0 | K66: 298 | L66: -119.5 | M66: 59.89932886 | N66: 0 | O66: -298
A67: E03 | B67: Education Support Staff | E67: S316BA | H67: =SUBTOTAL(9, H64:H66) -> 2621.91 | I67: 4370 | J67: 0 | K67: 4370 | L67: -1748.09 | M67: 59.9979405 | N67: 0 | O67: -4370
A68: E07 | B68: Cost of Other Staff | C68: R19012 | D68: Recharge - Payroll Split Coding | E68: S316BA | F68: G011 | G68: PE & Sport Grant | H68: 0 | I68: 1107 | J68: 0 | K68: 1107 | L68: -1107 | M68: =IFERROR(H68/K68,0)*100 -> 0 | N68: 0 | O68: -1107
A69: E07 | B69: Cost of Other Staff | E69: S316BA | H69: =SUBTOTAL(9, H68:H68) -> 0 | I69: 1107 | J69: 0 | K69: 1107 | L69: -1107 | M69: 0 | N69: 0 | O69: -1107
A70: E08 | B70: Indirect Employee Expenses | C70: A18600 | D70: Schools Apprenticeship Levy | E70: S316BA | F70: G011 | G70: PE & Sport Grant | H70: 6.94 | I70: 30 | J70: 0 | K70: 30 | L70: -23.06 | M70: 23.13333333 | N70: 0 | O70: -30
A71: E08 | B71: Indirect Employee Expenses | E71: S316BA | H71: =SUBTOTAL(9, H70:H70) -> 6.94 | I71: 30 | J71: 0 | K71: 30 | L71: -23.06 | M71: 23.13333333 | N71: 0 | O71: -30
A72: E09 | B72: Staff Development & Training | C72: A16015 | D72: Staff Training Expenses - Non Payroll | E72: S316BA | F72: G011 | G72: PE & Sport Grant | H72: 0 | I72: 500 | J72: 0 | K72: 500 | L72: -500 | M72: 0 | N72: 0 | O72: -500
A73: E09 | B73: Staff Development & Training | E73: S316BA | H73: =SUBTOTAL(9, H72:H72) -> 0 | I73: 500 | J73: 0 | K73: 500 | L73: -500 | M73: 0 | N73: 0 | O73: -500
A74: E18 | B74: Other Occupation Costs | C74: A40080 | D74: Health & Safety Equipment | E74: S316BA | F74: G011 | G74: PE & Sport Grant | H74: 0 | I74: 728 | J74: 0 | K74: 728 | L74: -728 | M74: 0 | N74: 0 | O74: -728
A75: E18 | B75: Other Occupation Costs | E75: S316BA | H75: =SUBTOTAL(9, H74:H74) -> 0 | I75: 728 | J75: 0 | K75: 728 | L75: -728 | M75: 0 | N75: 0 | O75: -728
A76: E19 | B76: Learning Resources | C76: A40020 | D76: Equipment & Materials Child Related | E76: S316BA | F76: G011 | G76: PE & Sport Grant | H76: 184.73 | I76: 250 | J76: 0 | K76: 250 | L76: -65.27 | M76: 73.892 | N76: 0 | O76: -250
A77: E19 | B77: Learning Resources | C77: A49080 | D77: Educational Visits & Other Expenditure | E77: S316BA | F77: G011 | G77: PE & Sport Grant | H77: 0 | I77: 500 | J77: 0 | K77: 500 | L77: -500 | M77: 0 | N77: 0 | O77: -500
A78: E19 | B78: Learning Resources | E78: S316BA | H78: =SUBTOTAL(9, H76:H77) -> 184.73 | I78: 750 | J78: 0 | K78: 750 | L78: -565.27 | M78: 24.63066667 | N78: 0 | O78: -750
A79: E27 | B79: Bought-In Professional Services - Curriculum | C79: A44928 | D79: Bought in Services - Curriculum Schools | E79: S316BA | F79: G011 | G79: PE & Sport Grant | H79: 2145 | I79: 13125 | J79: 0 | K79: 13125 | L79: -10980 | M79: 16.34285714 | N79: 0 | O79: -13125
A80: E27 | B80: Bought-In Professional Services - Curriculum | C80: A49005 | D80: Other Hired & Contracting Services | E80: S316BA | F80: G011 | G80: PE & Sport Grant | H80: 0 | I80: 2856 | J80: 0 | K80: 2856 | L80: -2856 | M80: 0 | N80: 0 | O80: -2856
A81: E27 | B81: Bought-In Professional Services - Curriculum | E81: S316BA | H81: =SUBTOTAL(9, H79:H80) -> 2145 | I81: 15981 | J81: 0 | K81: 15981 | L81: -13836 | M81: 13.42218885 | N81: 0 | O81: -15981
A82: I18 | B82: Additional Grant for Schools | C82: R93021 | D82: Recharge - Additional Grant For Schools | E82: S316BA | F82: G011 | G82: PE & Sport Grant | H82: -7796 | I82: -18631 | J82: 0 | K82: -18631 | L82: 10835 | M82: 41.8442381 | N82: 0 | O82: 18631
A83: I18 | B83: Additional Grant for Schools | E83: S316BA | H83: =SUBTOTAL(9, H82:H82) -> -7796 | I83: -18631 | J83: 0 | K83: -18631 | L83: 10835 | M83: 41.8442381 | N83: 0 | O83: 18631
A84: I99 | B84: Contingency | C84: A48010 | D84: Contingency/ Reserve Transfers (Budget Only) | E84: S316BA | F84: G011 | G84: PE & Sport Grant | H84: 0 | I84: 1142 | J84: 0 | K84: 1142 | L84: -1142 | M84: 0 | N84: 0 | O84: -1142
A85: I99 | B85: Contingency | C85: A48015 | D85: Schools Carry Forward (Budget Only) | E85: S316BA | F85: G011 | G85: PE & Sport Grant | H85: 0 | I85: -5977 | J85: 5977 | K85: 0 | L85: 0 | M85: 0 | N85: 0 | O85: 0
A86: I99 | B86: Contingency | E86: S316BA | H86: =SUBTOTAL(9, H84:H85) -> 0 | I86: -4835 | J86: 5977 | K86: 1142 | L86: -1142 | M86: 0 | N86: 0 | O86: -1142
E87: S316BA | H87: =SUBTOTAL(9, H64:H86) -> -2837.42 | I87: 0 | J87: 5977 | K87: 5977 | L87: -8814.42 | M87: -47.47231052 | N87: 0 | O87: -5977
A88: E25 | B88: Catering Supplies | C88: A41010 | D88: Free Meals | E88: S316EA | F88: G023 | G88: Universal Infant Free School Meals | H88: 8325.6 | I88: 38760 | J88: 0 | K88: 38760 | L88: -30434.4 | M88: 21.47987616 | N88: 0 | O88: -38760
A89: E25 | B89: Catering Supplies | E89: S316EA | H89: =SUBTOTAL(9, H88:H88) -> 8325.6 | I89: 38760 | J89: 0 | K89: 38760 | L89: -30434.4 | M89: 21.47987616 | N89: 0 | O89: -38760
A90: I18 | B90: Additional Grant for Schools | C90: R93021 | D90: Recharge - Additional Grant For Schools | E90: S316EA | F90: G023 | G90: Universal Infant Free School Meals | H90: 0 | I90: -37791 | J90: 0 | K90: -37791 | L90: 37791 | M90: 0 | N90: 0 | O90: 37791
A91: I18 | B91: Additional Grant for Schools | E91: S316EA | H91: =SUBTOTAL(9, H90:H90) -> 0 | I91: -37791 | J91: 0 | K91: -37791 | L91: 37791 | M91: 0 | N91: 0 | O91: 37791
A92: I99 | B92: Contingency | C92: A48010 | D92: Contingency/ Reserve Transfers (Budget Only) | E92: S316EA | F92: G023 | G92: Universal Infant Free School Meals | H92: 0 | I92: 20895 | J92: 0 | K92: 20895 | L92: -20895 | M92: 0 | N92: 0 | O92: -20895
A93: I99 | B93: Contingency | C93: A48015 | D93: Schools Carry Forward (Budget Only) | E93: S316EA | F93: G023 | G93: Universal Infant Free School Meals | H93: 0 | I93: -21864 | J93: 21864 | K93: 0 | L93: 0 | M93: 0 | N93: 0 | O93: 0
A94: I99 | B94: Contingency | E94: S316EA | H94: =SUBTOTAL(9, H92:H93) -> 0 | I94: -969 | J94: 21864 | K94: 20895 | L94: -20895 | M94: 0 | N94: 0 | O94: -20895
E95: S316EA | H95: =SUBTOTAL(9, H88:H94) -> 8325.6 | I95: 0 | J95: 21864 | K95: 21864 | L95: -13538.4 | M95: 38.07903403 | N95: 0 | O95: -21864
H96: =SUBTOTAL(9, H3:H95) -> 31100.34 | I96: 0 | J96: 39141 | K96: 39141 | L96: -8040.66 | M96: 79.45719322 | N96: 0 | O96: -39141

Sheet Appendix 3- Summary
A1: FINANCIAL PLAN - SUMMARY
J2: Variance from previous year to current year
A3: SUMMARY | B3: =PYEAR -> 2020/21 | C3: =YEAR1 -> 2021/22 | D3: =YEAR2 -> 2022/23 | E3: =YEAR3 -> 2023/24 | F3: =YEAR4 -> 2024/25 | G3: =YEAR5 -> 2025/26 | J3: Percentage | K3: If Red enter reason
B4: Actual | C4: Budget | D4: Estimate | E4: Estimate | F4: Estimate | G4: Estimate | J4: Difference | K4: for variance
A5: Number of pupils on roll (Primary) | B5: 308 | C5: =SUM('[2]2 - Pupil No.'!B7:B13) -> 308 | D5: =SUM('[2]2 - Pupil No.'!C7:C13) -> 314 | E5: =SUM('[2]2 - Pupil No.'!D7:D13) -> 315 | F5: =SUM('[2]2 - Pupil No.'!E7:E13) -> 315 | G5: =SUM('[2]2 - Pupil No.'!F7:F13) -> 315 | H5: Enter NoR for Previous year
A7: Number of pupils on roll (Secondary) | B7: 0 | C7: =SUM('[2]2 - Pupil No.'!B14:B18) -> 0 | D7: =SUM('[2]2 - Pupil No.'!C14:C18) -> 0 | E7: =SUM('[2]2 - Pupil No.'!D14:D18) -> 0 | F7: =SUM('[2]2 - Pupil No.'!E14:E18) -> 0 | G7: =SUM('[2]2 - Pupil No.'!F14:F18) -> 0 | H7: Enter NoR for Previous year
B9: £ | C9: £ | D9: £ | E9: £ | F9: £ | G9: £ | H9: Validation Correct/Incorrect
H10: =IF(OR([2]Validation!F8="INCORRECT",[2]Validation!D12="NOT ENTERED",[2]Validation!E17="NOT ENTERED",[2]Validation!F9="INCORRECT",[2]Validation!K21="NOT ENTERED",[2]Validation!L10="NOT ENTERED",[2]Validation!L11="NOT ENTERED",[2]Validation!L12="NOT ENTERED",[2]Validation!L13="NOT ENTERED",[2]Validation!L14="NOT ENTERED",[2]Validation!L15="NOT ENTERED",[2]Validation!L16="NOT ENTERED",[2]Validation!L17="NOT ENTERED", [2]Validation!L18="NOT ENTERED",[2]Validation!L19="NOT ENTERED",[2]Validation!E29="NOT ENTERED",[2]Validation!F29="NOT ENTERED",[2]Validation!G29="NOT ENTERED",[2]Validation!H29="NOT ENTERED",[2]Validation!I29="NOT ENTERED", [2]Validation!D24="NOT ENTERED",[2]Validation!E24="NOT ENTERED",[2]Validation!F24="NOT ENTERED",[2]Validation!G24="NOT ENTERED",[2]Validation!H24="NOT ENTERED",[2]Validation!I24="NOT ENTERED", [2]Validation!D25="NOT ENTERED",[2]Validation!E25="NOT ENTERED",[2]Validation!F25="NOT ENTERED",[2]Validation!G25="NOT ENTERED",[2]Validation!H25="NOT ENTERED",[2]Validation!I25="NOT ENTERED",[2]Validation!D26="NOT ENTERED",[2]Validation!E26="NOT ENTERED",[2]Validation!F26="NOT ENTERED",[2]Validation!G26="NOT ENTERED",[2]Validation!H26="NOT ENTERED",[2]Validation!I26="NOT ENTERED", [2]Validation!D27="NOT ENTERED",[2]Validation!E27="NOT ENTERED",[2]Validation!F27="NOT ENTERED",[2]Validation!G27="NOT ENTERED",[2]Validation!H27="NOT ENTERED",[2]Validation!I27="NOT ENTERED",[2]Validation!D28="NOT ENTERED",[2]Validation!E28="NOT ENTERED",[2]Validation!F28="NOT ENTERED",[2]Validation!G28="NOT ENTERED",[2]Validation!H28="NOT ENTERED",[2]Validation!I28="NOT ENTERED",[2]Validation!D29="NOT ENTERED",[2]Validation!E29="NOT ENTERED",[2]Validation!F29="NOT ENTERED",[2]Validation!G29="NOT ENTERED",[2]Validation!H29="NOT ENTERED",[2]Validation!I29="NOT ENTERED",[2]Validation!D30="NOT ENTERED",[2]Validation!E30="NOT ENTERED",[2]Validation!F30="NOT ENTERED",[2]Validation!G30="NOT ENTERED",[2]Validation!H30="NOT ENTERED",[2]Validation!I30="NOT ENTERED", [2]Validation!D31="NOT ENTERED",[2]Validation!E31="NOT ENTERED",[2]Validation!F31="NOT ENTERED",[2]Validation!G31="NOT ENTERED",[2]Validation!H31="NOT ENTERED",[2]Validation!I31="NOT ENTERED", [2]Validation!D32="NOT ENTERED",[2]Validation!E32="NOT ENTERED",[2]Validation!F32="NOT ENTERED",[2]Validation!G32="NOT ENTERED",[2]Validation!H32="NOT ENTERED",[2]Validation!I32="NOT ENTERED", [2]Validation!D33="NOT ENTERED",[2]Validation!E33="NOT ENTERED",[2]Validation!F33="NOT ENTERED",[2]Validation!G33="NOT ENTERED",[2]Validation!H33="NOT ENTERED",[2]Validation!I33="NOT ENTERED",[2]Validation!D36="Incorrect account codes used",[2]Validation!K19="NOT ENTERED",[2]Validation!D42="NOT ENTERED",[2]Validation!E42="NOT ENTERED",[2]Validation!F42="NOT ENTERED",[2]Validation!G42="NOT ENTERED",[2]Validation!H42="NOT ENTERED",[2]Validation!D43="NOT ENTERED",[2]Validation!E43="NOT ENTERED",[2]Validation!F43="NOT ENTERED",[2]Validation!G43="NOT ENTERED",[2]Validation!H43="NOT ENTERED",[2]Validation!F55="incorrect",[2]Validation!F56="incorrect",[2]Validation!D49="NOT ENTERED",[2]Validation!E49="NOT ENTERED",[2]Validation!F49="NOT ENTERED",[2]Validation!G49="NOT ENTERED",[2]Validation!D64="INCORRECT",[2]Validation!D71="INCORRECT",[2]Validation!D72="INCORRECT"),"INCORRECT","CORRECT") -> CORRECT
A11: Under / Overspend B/F | B11: -38211 | C11: =B74 -> -71288.89 | D11: =C74 -> -56854.34 | E11: =D74 -> -33648.35704 | F11: =E74 -> 6268.292641 | G11: =F74 -> 72098.22155 | H11: Note: A negative figure demonstrates a surplus
A13: Income - (I01)
A15: Total Original Budget Share | B15: 1229172 | C15: ='[2]3b - Schools Block'!C28 -> 1332064 | D15: ='[2]3b - Schools Block'!D28 -> 1361519.435 | E15: ='[2]3b - Schools Block'!E28 -> 1372933.05 | F15: ='[2]3b - Schools Block'!F28 -> 1380534.13 | G15: ='[2]3b - Schools Block'!G28 -> 1388236.72
A17: Total Budget including carry forward | B17: =(-B11)+B15 -> 1267383 | C17: 1403352.89 | D17: 1418373.775 | E17: 1406581.407 | F17: 1374265.838 | G17: 1316138.499
A19: Income:
K20: Reason
A21: (I01) - Funds Delegated by the Local Authority | B21: ='[2]6 - Income & Expenditure'!F366 -> -83790 | C21: ='[2]6 - Income & Expenditure'!G366 -> 0 | D21: ='[2]6 - Income & Expenditure'!H366 -> 0 | E21: ='[2]6 - Income & Expenditure'!I366 -> 0 | F21: ='[2]6 - Income & Expenditure'!J366 -> 0 | G21: ='[2]6 - Income & Expenditure'!K366 -> 0 | J21: =IFERROR((C21-B21)/B21,0) -> -1 | K21: Teachers' Pay & Pension Grants now in B/share | L21: =IF(OR(K21<>"",AND(ABS(J21)<0.2499)),0,1) -> 0 | M21: =B21-C21 -> -83790 | N21: =IF(AND(AND(J21=0,M21<>0,K21="")),1,0) -> 0
A22: (I02) - Funding for 6th Form | B22: ='[2]6 - Income & Expenditure'!F371 -> 0 | C22: ='[2]6 - Income & Expenditure'!G371 -> 0 | D22: ='[2]6 - Income & Expenditure'!H371 -> 0 | E22: ='[2]6 - Income & Expenditure'!I371 -> 0 | F22: ='[2]6 - Income & Expenditure'!J371 -> 0 | G22: ='[2]6 - Income & Expenditure'!K371 -> 0 | J22: 0 | L22: =IF(OR(K22<>"",AND(ABS(J22)<0.25)),0,1) -> 0 | M22: 0 | N22: 0
A23: (I03) - High Needs Top-Up Income | B23: ='[2]6 - Income & Expenditure'!F377 -> -46504.53 | C23: ='[2]6 - Income & Expenditure'!G377 -> -45775.07 | D23: ='[2]6 - Income & Expenditure'!H377 -> -45775.07 | E23: ='[2]6 - Income & Expenditure'!I377 -> -45775.07 | F23: ='[2]6 - Income & Expenditure'!J377 -> -28706.16 | G23: ='[2]6 - Income & Expenditure'!K377 -> -11383.8 | J23: -0.01568578373 | L23: 0 | M23: -729.46 | N23: 0
A24: (I07) - Other Grants and Payments Received | B24: ='[2]6 - Income & Expenditure'!F384 -> -1814 | C24: ='[2]6 - Income & Expenditure'!G384 -> 0 | D24: ='[2]6 - Income & Expenditure'!H384 -> 0 | E24: ='[2]6 - Income & Expenditure'!I384 -> 0 | F24: ='[2]6 - Income & Expenditure'!J384 -> 0 | G24: ='[2]6 - Income & Expenditure'!K384 -> 0 | J24: -1 | K24: £464 Credit for BT Broadband 20/21 and £1K for Sports Apprentice Incentive | L24: 0 | M24: -1814 | N24: 0
A25: (I08A) - Income From Lettings | B25: ='[2]6 - Income & Expenditure'!F389 -> -6350 | C25: ='[2]6 - Income & Expenditure'!G389 -> 0 | D25: ='[2]6 - Income & Expenditure'!H389 -> 0 | E25: ='[2]6 - Income & Expenditure'!I389 -> 0 | F25: ='[2]6 - Income & Expenditure'!J389 -> 0 | G25: ='[2]6 - Income & Expenditure'!K389 -> 0 | J25: -1 | K25: LCC taken over as landlords for onsite nursery | L25: 0 | M25: -6350 | N25: 0
A26: (I08B) - Income From Facilities and Services | B26: ='[2]6 - Income & Expenditure'!F405 -> -1408.07 | C26: ='[2]6 - Income & Expenditure'!G405 -> -7400 | D26: ='[2]6 - Income & Expenditure'!H405 -> -5944 | E26: ='[2]6 - Income & Expenditure'!I405 -> -6099.52 | F26: ='[2]6 - Income & Expenditure'!J405 -> -6267.4816 | G26: ='[2]6 - Income & Expenditure'!K405 -> -6448.880128 | J26: 4.25542054 | K26: No swimming income for 20/21 / now included Limes Utilities income | L26: 0 | M26: 5991.93 | N26: 0
A27: (I09) - Income From Catering | B27: ='[2]6 - Income & Expenditure'!F410 -> -1362.45 | C27: ='[2]6 - Income & Expenditure'!G410 -> -10000 | D27: ='[2]6 - Income & Expenditure'!H410 -> -10200 | E27: ='[2]6 - Income & Expenditure'!I410 -> -10404 | F27: ='[2]6 - Income & Expenditure'!J410 -> -10612.08 | G27: ='[2]6 - Income & Expenditure'!K410 -> -10824.3216 | J27: 6.339718889 | K27: COVID 19 lockdown - low income for 2020/21 | L27: 0 | M27: 8637.55 | N27: 0
A28: (I10) - Receipts From Supply Teacher Insurance Claims | B28: ='[2]6 - Income & Expenditure'!F415 -> 0 | C28: ='[2]6 - Income & Expenditure'!G415 -> 0 | D28: ='[2]6 - Income & Expenditure'!H415 -> 0 | E28: ='[2]6 - Income & Expenditure'!I415 -> 0 | F28: ='[2]6 - Income & Expenditure'!J415 -> 0 | G28: ='[2]6 - Income & Expenditure'!K415 -> 0 | J28: 0 | L28: 0 | M28: 0 | N28: 0
A29: (I11) - Receipts From Other Insurance Claims | B29: ='[2]6 - Income & Expenditure'!F422 -> 0 | C29: ='[2]6 - Income & Expenditure'!G422 -> 0 | D29: ='[2]6 - Income & Expenditure'!H422 -> 0 | E29: ='[2]6 - Income & Expenditure'!I422 -> 0 | F29: ='[2]6 - Income & Expenditure'!J422 -> 0 | G29: ='[2]6 - Income & Expenditure'!K422 -> 0 | J29: 0 | L29: 0 | M29: 0 | N29: 0
A30: (I12) - Income from Contributions to Visits | B30: ='[2]6 - Income & Expenditure'!F427 -> 0 | C30: ='[2]6 - Income & Expenditure'!G427 -> -7425 | D30: ='[2]6 - Income & Expenditure'!H427 -> -11500 | E30: ='[2]6 - Income & Expenditure'!I427 -> -12500 | F30: ='[2]6 - Income & Expenditure'!J427 -> -12500 | G30: ='[2]6 - Income & Expenditure'!K427 -> -12500 | J30: 0 | K30: No ed visits 20/21 due to Pandemic | L30: 0 | M30: 7425 | N30: 0
A31: (I13) - Donations and/or Voluntary Funds | B31: ='[2]6 - Income & Expenditure'!F432 -> 0 | C31: ='[2]6 - Income & Expenditure'!G432 -> 0 | D31: ='[2]6 - Income & Expenditure'!H432 -> 0 | E31: ='[2]6 - Income & Expenditure'!I432 -> 0 | F31: ='[2]6 - Income & Expenditure'!J432 -> 0 | G31: ='[2]6 - Income & Expenditure'!K432 -> 0 | J31: 0 | L31: 0 | M31: 0 | N31: 0
A32: (I18) - Additional Grant For Schools | B32: ='[2]6 - Income & Expenditure'!F441 -> -26156 | C32: ='[2]6 - Income & Expenditure'!G441 -> -14131 | D32: ='[2]6 - Income & Expenditure'!H441 -> 0 | E32: ='[2]6 - Income & Expenditure'!I441 -> 0 | F32: ='[2]6 - Income & Expenditure'!J441 -> 0 | G32: ='[2]6 - Income & Expenditure'!K441 -> 0 | J32: -0.4597415507 | K32: COVID-19 Grants (Catch-up/Winter Grant/Additional Costs) | L32: 0 | M32: -12025 | N32: 0
A33: Total Income: | B33: =SUM(B21:B32) -> -167385.05 | C33: -84731.07 | D33: -73419.07 | E33: -74778.59 | F33: -58085.7216 | G33: -41157.00173
A35: Expenditure:
A37: (E01) - Teaching Staff | B37: ='[2]6 - Income & Expenditure'!F15 -> 704843.8 | C37: ='[2]6 - Income & Expenditure'!G15 -> 747241.64 | D37: ='[2]6 - Income & Expenditure'!H15 -> 764009.1448 | E37: ='[2]6 - Income & Expenditure'!I15 -> 779506.3862 | F37: ='[2]6 - Income & Expenditure'!J15 -> 793408.1631 | G37: ='[2]6 - Income & Expenditure'!K15 -> 804187.4 | J37: =IFERROR((C37-B37)/B37,0) -> 0.06015210746 | L37: =IF(OR(K37<>"",AND(ABS(J37)<0.25)),0,1) -> 0 | M37: =B37-C37 -> -42397.84 | N37: =IF(AND(AND(J37=0,M37<>0,K37="")),1,0) -> 0
A38: (E02) - Supply Teaching Staff | B38: ='[2]6 - Income & Expenditure'!F27 -> 34 | C38: ='[2]6 - Income & Expenditure'!G27 -> 0 | D38: ='[2]6 - Income & Expenditure'!H27 -> 0 | E38: ='[2]6 - Income & Expenditure'!I27 -> 0 | F38: ='[2]6 - Income & Expenditure'!J27 -> 0 | G38: ='[2]6 - Income & Expenditure'!K27 -> 0 | J38: -1 | K38: Overtime allowances miscoded in 2020/21 (MSA acting as TA) | L38: 0 | M38: 34 | N38: 0
A39: (E03) - Education Support Staff | B39: ='[2]6 - Income & Expenditure'!F51 -> 240114.84 | C39: ='[2]6 - Income & Expenditure'!G51 -> 255672.6 | D39: ='[2]6 - Income & Expenditure'!H51 -> 279274.4601 | E39: ='[2]6 - Income & Expenditure'!I51 -> 285143.7114 | F39: ='[2]6 - Income & Expenditure'!J51 -> 284000.1628 | G39: ='[2]6 - Income & Expenditure'!K51 -> 253883.0512 | J39: 0.06479299655 | L39: 0 | M39: -15557.76 | N39: 0
A40: (E04) - Premises Staff | B40: ='[2]6 - Income & Expenditure'!F63 -> 54977.25 | C40: ='[2]6 - Income & Expenditure'!G63 -> 55264.5 | D40: ='[2]6 - Income & Expenditure'!H63 -> 54516.89098 | E40: ='[2]6 - Income & Expenditure'!I63 -> 54473.32162 | F40: ='[2]6 - Income & Expenditure'!J63 -> 54935.28756 | G40: ='[2]6 - Income & Expenditure'!K63 -> 55502.845 | J40: 0.005224888477 | L40: 0 | M40: -287.25 | N40: 0
A41: (E05) - Administrative and Clerical Staff | B41: ='[2]6 - Income & Expenditure'!F75 -> 85952.36 | C41: ='[2]6 - Income & Expenditure'!G75 -> 87608 | D41: ='[2]6 - Income & Expenditure'!H75 -> 89402.54038 | E41: ='[2]6 - Income & Expenditure'!I75 -> 90346.08791 | F41: ='[2]6 - Income & Expenditure'!J75 -> 91299.06435 | G41: ='[2]6 - Income & Expenditure'!K75 -> 92261.56421 | J41: 0.01926229832 | L41: 0 | M41: -1655.64 | N41: 0
A42: (E06) - Catering Staff | B42: ='[2]6 - Income & Expenditure'!F83 -> 0 | C42: ='[2]6 - Income & Expenditure'!G83 -> 0 | D42: ='[2]6 - Income & Expenditure'!H83 -> 0 | E42: ='[2]6 - Income & Expenditure'!I83 -> 0 | F42: ='[2]6 - Income & Expenditure'!J83 -> 0 | G42: ='[2]6 - Income & Expenditure'!K83 -> 0 | J42: 0 | L42: 0 | M42: 0 | N42: 0
A43: (E07) - Cost of Other Staff | B43: ='[2]6 - Income & Expenditure'!F106 -> 39238.01 | C43: ='[2]6 - Income & Expenditure'!G106 -> 15248.85 | D43: ='[2]6 - Income & Expenditure'!H106 -> 17031.95754 | E43: ='[2]6 - Income & Expenditure'!I106 -> 16624.81586 | F43: ='[2]6 - Income & Expenditure'!J106 -> 16194.31607 | G43: ='[2]6 - Income & Expenditure'!K106 -> 16339.57641 | J43: -0.6113755514 | K43: SENCO salary 70% charged to Budget Share instead of Pupil Premium | L43: 0 | M43: 23989.16 | N43: 0
A44: (E08) - Indirect Employee Expenses | B44: ='[2]6 - Income & Expenditure'!F131 -> 5145.38 | C44: ='[2]6 - Income & Expenditure'!G131 -> 4673.91 | D44: ='[2]6 - Income & Expenditure'!H131 -> 4578.2491 | E44: ='[2]6 - Income & Expenditure'!I131 -> 4623.031591 | F44: ='[2]6 - Income & Expenditure'!J131 -> 4668.261907 | G44: ='[2]6 - Income & Expenditure'!K131 -> 4713.944526 | J44: -0.09162977273 | L44: 0 | M44: 471.47 | N44: 0
A45: (E09) - Staff Development and Training | B45: ='[2]6 - Income & Expenditure'!F138 -> 7888.4 | C45: ='[2]6 - Income & Expenditure'!G138 -> 5500 | D45: ='[2]6 - Income & Expenditure'!H138 -> 3500 | E45: ='[2]6 - Income & Expenditure'!I138 -> 5000 | F45: ='[2]6 - Income & Expenditure'!J138 -> 3500 | G45: ='[2]6 - Income & Expenditure'!K138 -> 3500 | J45: -0.302773693 | K45: First Aid training took place in 2020/21 hence higher expenditure | L45: 0 | M45: 2388.4 | N45: 0
A46: (E10) - Supply Teacher Insurance | B46: ='[2]6 - Income & Expenditure'!F144 -> 9897.01 | C46: ='[2]6 - Income & Expenditure'!G144 -> 9897.01 | D46: ='[2]6 - Income & Expenditure'!H144 -> 9995.9801 | E46: ='[2]6 - Income & Expenditure'!I144 -> 10095.9399 | F46: ='[2]6 - Income & Expenditure'!J144 -> 10196.8993 | G46: ='[2]6 - Income & Expenditure'!K144 -> 10298.86829 | J46: 0 | L46: 0 | M46: 0 | N46: 0
A47: (E11) - Staff-Related Insurance | B47: ='[2]6 - Income & Expenditure'!F151 -> 998.24 | C47: ='[2]6 - Income & Expenditure'!G151 -> 5342.43 | D47: ='[2]6 - Income & Expenditure'!H151 -> 5395.8543 | E47: ='[2]6 - Income & Expenditure'!I151 -> 5449.812843 | F47: ='[2]6 - Income & Expenditure'!J151 -> 5504.310971 | G47: ='[2]6 - Income & Expenditure'!K151 -> 5559.354081 | J47: 4.351849255 | K47: LSA's not insured 2020/21 | L47: 0 | M47: -4344.19 | N47: 0
A48: (E12) - Building Maintenance and Improvement | B48: ='[2]6 - Income & Expenditure'!F158 -> 18980.33 | C48: ='[2]6 - Income & Expenditure'!G158 -> 18000 | D48: ='[2]6 - Income & Expenditure'!H158 -> 12000 | E48: ='[2]6 - Income & Expenditure'!I158 -> 12000 | F48: ='[2]6 - Income & Expenditure'!J158 -> 12000 | G48: ='[2]6 - Income & Expenditure'!K158 -> 12000 | J48: -0.05164978691 | L48: 0 | M48: 980.33 | N48: 0
A49: (E13) - Grounds Maintenance and Improvement | B49: ='[2]6 - Income & Expenditure'!F163 -> 3996.2 | C49: ='[2]6 - Income & Expenditure'!G163 -> 3600 | D49: ='[2]6 - Income & Expenditure'!H163 -> 3200 | E49: ='[2]6 - Income & Expenditure'!I163 -> 3264 | F49: ='[2]6 - Income & Expenditure'!J163 -> 3329.28 | G49: ='[2]6 - Income & Expenditure'!K163 -> 3395.8656 | J49: -0.09914418698 | L49: 0 | M49: 396.2 | N49: 0
A50: (E14) - Cleaning and Caretaking | B50: ='[2]6 - Income & Expenditure'!F169 -> 0 | C50: ='[2]6 - Income & Expenditure'!G169 -> 400 | D50: ='[2]6 - Income & Expenditure'!H169 -> 320 | E50: ='[2]6 - Income & Expenditure'!I169 -> 326.4 | F50: ='[2]6 - Income & Expenditure'!J169 -> 332.928 | G50: ='[2]6 - Income & Expenditure'!K169 -> 339.58656 | J50: 0 | K50: Window cleaning not charged for 20/21 so doubled for 21/22 | L50: 0 | M50: -400 | N50: 0
A51: (E15) - Water and Sewerage | B51: ='[2]6 - Income & Expenditure'!F174 -> 1921.49 | C51: ='[2]6 - Income & Expenditure'!G174 -> 6580.92 | D51: ='[2]6 - Income & Expenditure'!H174 -> 6909.966 | E51: ='[2]6 - Income & Expenditure'!I174 -> 7255.4643 | F51: ='[2]6 - Income & Expenditure'!J174 -> 7618.237515 | G51: ='[2]6 - Income & Expenditure'!K174 -> 7999.149391 | J51: 2.424904631 | K51: Water | L51: 0 | M51: -4659.43 | N51: 0
A52: (E16) - Energy | B52: ='[2]6 - Income & Expenditure'!F181 -> 13146.84 | C52: ='[2]6 - Income & Expenditure'!G181 -> 14800 | D52: ='[2]6 - Income & Expenditure'!H181 -> 15790 | E52: ='[2]6 - Income & Expenditure'!I181 -> 16854.5 | F52: ='[2]6 - Income & Expenditure'!J181 -> 17999.725 | G52: ='[2]6 - Income & Expenditure'!K181 -> 19232.46125 | J52: 0.1257458066 | L52: 0 | M52: -1653.16 | N52: 0
A53: (E17) - Rates | B53: ='[2]6 - Income & Expenditure'!F186 -> 26880 | C53: ='[2]6 - Income & Expenditure'!G186 -> 26880 | D53: ='[2]6 - Income & Expenditure'!H186 -> 28224 | E53: ='[2]6 - Income & Expenditure'!I186 -> 29635.2 | F53: ='[2]6 - Income & Expenditure'!J186 -> 31116.96 | G53: ='[2]6 - Income & Expenditure'!K186 -> 32672.808 | J53: 0 | L53: 0 | M53: 0 | N53: 0
A54: (E18) - Other Occupation Costs | B54: ='[2]6 - Income & Expenditure'!F208 -> 13486.36 | C54: ='[2]6 - Income & Expenditure'!G208 -> 8404.2 | D54: ='[2]6 - Income & Expenditure'!H208 -> 8181.3 | E54: ='[2]6 - Income & Expenditure'!I208 -> 8262.255 | F54: ='[2]6 - Income & Expenditure'!J208 -> 7847.25775 | G54: ='[2]6 - Income & Expenditure'!K208 -> 7936.510638 | J54: -0.3768370413 | K54: Biffa refuse costs reduced by £5K (revised contract and reduced weeks 38 instead of 52!) cleaning costs hopefully lower for 21/22 | L54: 0 | M54: 5082.16 | N54: 0
A55: (E19) - Learning Resources | B55: ='[2]6 - Income & Expenditure'!F240 -> 39256.49 | C55: ='[2]6 - Income & Expenditure'!G240 -> 49500 | D55: ='[2]6 - Income & Expenditure'!H240 -> 46885 | E55: ='[2]6 - Income & Expenditure'!I240 -> 47970.85 | F55: ='[2]6 - Income & Expenditure'!J240 -> 47757.5585 | G55: ='[2]6 - Income & Expenditure'!K240 -> 54701.13408 | J55: 0.2609380003 | K55: LEAD EQUATE books additional cost (income will allow for this) | L55: 0 | M55: -10243.51 | N55: 0
A56: (E20) - ICT Learning Resources | B56: ='[2]6 - Income & Expenditure'!F248 -> 35222.93 | C56: ='[2]6 - Income & Expenditure'!G248 -> 34237 | D56: ='[2]6 - Income & Expenditure'!H248 -> 30675 | E56: ='[2]6 - Income & Expenditure'!I248 -> 31383.75 | F56: ='[2]6 - Income & Expenditure'!J248 -> 32127.9375 | G56: ='[2]6 - Income & Expenditure'!K248 -> 32909.33438 | J56: -0.027991141 | L56: 0 | M56: 985.93 | N56: 0
A57: (E21) - Examination Fees | B57: ='[2]6 - Income & Expenditure'!F254 -> 0 | C57: ='[2]6 - Income & Expenditure'!G254 -> 0 | D57: ='[2]6 - Income & Expenditure'!H254 -> 0 | E57: ='[2]6 - Income & Expenditure'!I254 -> 0 | F57: ='[2]6 - Income & Expenditure'!J254 -> 0 | G57: ='[2]6 - Income & Expenditure'!K254 -> 0 | J57: 0 | L57: 0 | M57: 0 | N57: 0
A58: (E22) - Administrative Supplies | B58: ='[2]6 - Income & Expenditure'!F274 -> 3865.82 | C58: ='[2]6 - Income & Expenditure'!G274 -> 3660 | D58: ='[2]6 - Income & Expenditure'!H274 -> 3713.2 | E58: ='[2]6 - Income & Expenditure'!I274 -> 3767.464 | F58: ='[2]6 - Income & Expenditure'!J274 -> 3822.81328 | G58: ='[2]6 - Income & Expenditure'!K274 -> 3879.269546 | J58: -0.05324096828 | L58: 0 | M58: 205.82 | N58: 0
A59: (E23) - Other Insurance Premiums | B59: ='[2]6 - Income & Expenditure'!F282 -> 10820 | C59: ='[2]6 - Income & Expenditure'!G282 -> 11985.25 | D59: ='[2]6 - Income & Expenditure'!H282 -> 12584.5125 | E59: ='[2]6 - Income & Expenditure'!I282 -> 13213.73813 | F59: ='[2]6 - Income & Expenditure'!J282 -> 13874.42503 | G59: ='[2]6 - Income & Expenditure'!K282 -> 14568.14628 | J59: 0.107694085 | L59: 0 | M59: -1165.25 | N59: 0
A60: (E24) - Special Facilities | B60: ='[2]6 - Income & Expenditure'!F295 -> 0 | C60: ='[2]6 - Income & Expenditure'!G295 -> 3350 | D60: ='[2]6 - Income & Expenditure'!H295 -> 4050 | E60: ='[2]6 - Income & Expenditure'!I295 -> 4050 | F60: ='[2]6 - Income & Expenditure'!J295 -> 4050 | G60: ='[2]6 - Income & Expenditure'!K295 -> 4050 | J60: 0 | K60: Replace staff sports uniform for 21/22 | L60: 0 | M60: -3350 | N60: 0
A61: (E25) - Catering Supplies | B61: ='[2]6 - Income & Expenditure'!F311 -> 20686.35 | C61: ='[2]6 - Income & Expenditure'!G311 -> 37437.69 | D61: ='[2]6 - Income & Expenditure'!H311 -> 35200 | E61: ='[2]6 - Income & Expenditure'!I311 -> 35404 | F61: ='[2]6 - Income & Expenditure'!J311 -> 35612.08 | G61: ='[2]6 - Income & Expenditure'!K311 -> 35824.3216 | J61: 0.8097774619 | K61: Meals low for 2020/21 due to pandemic | L61: 0 | M61: -16751.34 | N61: 0
A62: (E26) - Agency Supply Teaching Staff | B62: ='[2]6 - Income & Expenditure'!F316 -> 9167.36 | C62: ='[2]6 - Income & Expenditure'!G316 -> 7500 | D62: ='[2]6 - Income & Expenditure'!H316 -> 5000 | E62: ='[2]6 - Income & Expenditure'!I316 -> 5000 | F62: ='[2]6 - Income & Expenditure'!J316 -> 5000 | G62: ='[2]6 - Income & Expenditure'!K316 -> 5000 | J62: -0.1818800614 | L62: 0 | M62: 1667.36 | N62: 0
A63: (E27) - Bought-In Professional Services - Curriculum | B63: ='[2]6 - Income & Expenditure'!F326 -> 1535 | C63: ='[2]6 - Income & Expenditure'!G326 -> 3255 | D63: ='[2]6 - Income & Expenditure'!H326 -> 2250 | E63: ='[2]6 - Income & Expenditure'!I326 -> 2250 | F63: ='[2]6 - Income & Expenditure'!J326 -> 2250 | G63: ='[2]6 - Income & Expenditure'!K326 -> 2250 | J63: 1.120521173 | K63: Extra £1755 for SLE Leadership Work | L63: 0 | M63: -1720 | N63: 0
A64: (E28A) - Bought-In Professional Services - Other (except PFI) | B64: ='[2]6 - Income & Expenditure'!F342 -> 15424.7 | C64: ='[2]6 - Income & Expenditure'!G342 -> 15190.62 | D64: ='[2]6 - Income & Expenditure'!H342 -> 15456.4324 | E64: ='[2]6 - Income & Expenditure'!I342 -> 15727.56105 | F64: ='[2]6 - Income & Expenditure'!J342 -> 16004.11227 | G64: ='[2]6 - Income & Expenditure'!K342 -> 16286.19451 | J64: -0.01517565982 | L64: 0 | M64: 234.08 | N64: 0
A65: (E28B) - Bought-In Professional Services - Other (PFI) | B65: ='[2]6 - Income & Expenditure'!F348 -> 0 | C65: ='[2]6 - Income & Expenditure'!G348 -> 0 | D65: ='[2]6 - Income & Expenditure'!H348 -> 0 | E65: ='[2]6 - Income & Expenditure'!I348 -> 0 | F65: ='[2]6 - Income & Expenditure'!J348 -> 0 | G65: ='[2]6 - Income & Expenditure'!K348 -> 0 | J65: 0 | L65: 0 | M65: 0 | N65: 0
A66: (E29) - Loan Interest | B66: ='[2]6 - Income & Expenditure'!F353 -> 0 | C66: ='[2]6 - Income & Expenditure'!G353 -> 0 | D66: ='[2]6 - Income & Expenditure'!H353 -> 0 | E66: ='[2]6 - Income & Expenditure'!I353 -> 0 | F66: ='[2]6 - Income & Expenditure'!J353 -> 0 | G66: ='[2]6 - Income & Expenditure'!K353 -> 0 | J66: 0 | L66: 0 | M66: 0 | N66: 0
A67: (E30) - Direct Revenue Financing (Revenue Cont to Capital) | B67: ='[2]6 - Income & Expenditure'!F359 -> 0 | C67: ='[2]6 - Income & Expenditure'!G359 -> 0 | D67: ='[2]6 - Income & Expenditure'!H359 -> 0 | E67: ='[2]6 - Income & Expenditure'!I359 -> 0 | F67: ='[2]6 - Income & Expenditure'!J359 -> 0 | G67: ='[2]6 - Income & Expenditure'!K359 -> 0 | J67: 0 | L67: 0 | M67: 0 | N67: 0
A68: Total Expenditure: | B68: =SUM(B37:B67) -> 1363479.16 | C68: 1431229.62 | D68: 1458144.488 | E68: 1487628.29 | F68: 1504449.781 | G68: 1499291.386
L69: =SUM(L21:L32,L37:L67) -> 0 | N69: =SUM(N21:N32,N37:N67) -> 0
A70: Total of Income and Expenditure | B70: =B68+B33 -> 1196094.11 | C70: 1346498.55 | D70: 1384725.418 | E70: 1412849.7 | F70: 1446364.059 | G70: 1458134.384
A72: Under / Overspend - In Year Position | B72: =-(B15-B70) -> -33077.89 | C72: 14434.55 | D72: 23205.98296 | E72: 39916.64968 | F72: 65829.92891 | G72: 69897.66374 | H72: Note: A negative figure demonstrates a surplus
A74: Under / Overspend C/F | B74: =-(B17-B70) -> -71288.89 | C74: -56854.34 | D74: -33648.35704 | E74: 6268.292641 | F74: 72098.22155 | G74: 141995.8853 | H74: Note: A negative figure demonstrates a surplus
A75: An 8% Carry Forward would Equal (Primary) | C75: =-SUM('[2]3b - Schools Block'!C28-'[2]6 - Income & Expenditure'!G366-'[2]6 - Income & Expenditure'!G377)*8% -> -110227.1256 | D75: =-SUM('[2]3b - Schools Block'!D28-'[2]6 - Income & Expenditure'!H366-'[2]6 - Income & Expenditure'!H377)*8% -> -112583.5604 | E75: =-SUM('[2]3b - Schools Block'!E28-'[2]6 - Income & Expenditure'!I366-'[2]6 - Income & Expenditure'!I377)*8% -> -113496.6496 | F75: =-SUM('[2]3b - Schools Block'!F28-'[2]6 - Income & Expenditure'!J366-'[2]6 - Income & Expenditure'!J377)*8% -> -112739.2232 | G75: =-SUM('[2]3b - Schools Block'!G28-'[2]6 - Income & Expenditure'!K366-'[2]6 - Income & Expenditure'!K377)*8% -> -111969.6416
A76: A 5% Carry Forward would Equal (Secondary) | C76: =-SUM('[2]3b - Schools Block'!C28-'[2]6 - Income & Expenditure'!G366-'[2]6 - Income & Expenditure'!G371-'[2]6 - Income & Expenditure'!G377)*5% -> -68891.9535 | D76: =-SUM('[2]3b - Schools Block'!D28-'[2]6 - Income & Expenditure'!H366-'[2]6 - Income & Expenditure'!H371-'[2]6 - Income & Expenditure'!H377)*5% -> -70364.72526 | E76: =-SUM('[2]3b - Schools Block'!E28-'[2]6 - Income & Expenditure'!I366-'[2]6 - Income & Expenditure'!I371-'[2]6 - Income & Expenditure'!I377)*5% -> -70935.40601 | F76: =-SUM('[2]3b - Schools Block'!F28-'[2]6 - Income & Expenditure'!J366-'[2]6 - Income & Expenditure'!J371-'[2]6 - Income & Expenditure'!J377)*5% -> -70462.01452 | G76: =-SUM('[2]3b - Schools Block'!G28-'[2]6 - Income & Expenditure'!K366-'[2]6 - Income & Expenditure'!K371-'[2]6 - Income & Expenditure'!K377)*5% -> -69981.026
A78: Pupil Premium FSM - (I05) | B78: £ | C78: £ | D78: £ | E78: £ | F78: £ | G78: £
A80: Income:
A81: B/F Total | B81: ='[2]7 - Pupil Premium FSM'!J13 -> -3183 | C81: =B89 -> -4235.16 | D81: =C89 -> -2841.1 | E81: =D89 -> -13786.39643 | F81: =E89 -> -21809.29799 | G81: =F89 -> -26869.30811
A82: Pupil Premium - Eligible for Free School Meals | B82: ='[2]7 - Pupil Premium FSM'!J14 -> -106255 | C82: ='[2]7 - Pupil Premium FSM'!K14 -> -104910 | D82: ='[2]7 - Pupil Premium FSM'!L14 -> -104910 | E82: ='[2]7 - Pupil Premium FSM'!M14 -> -104910 | F82: ='[2]7 - Pupil Premium FSM'!N14 -> -104910 | G82: ='[2]7 - Pupil Premium FSM'!O14 -> -104910
A83: Total Pupil Premium Income | B83: =SUM(B81:B82) -> -109438 | C83: -109145.16 | D83: -107751.1 | E83: -118696.3964 | F83: -126719.298 | G83: -131779.3081
A85: Expenditure:
A86: Pupil Premium - Eligible for Free School Meals | B86: ='[2]7 - Pupil Premium FSM'!J201 -> 105202.84 | C86: ='[2]7 - Pupil Premium FSM'!K201 -> 106304.06 | D86: ='[2]7 - Pupil Premium FSM'!L201 -> 93964.70357 | E86: ='[2]7 - Pupil Premium FSM'!M201 -> 96887.09844 | F86: ='[2]7 - Pupil Premium FSM'!N201 -> 99849.98988 | G86: ='[2]7 - Pupil Premium FSM'!O201 -> 100873.5482
A87: Overspend charged back to Budget Share | B87: ='[2]7 - Pupil Premium FSM'!J204 -> 0 | C87: ='[2]7 - Pupil Premium FSM'!K204 -> 0 | D87: ='[2]7 - Pupil Premium FSM'!L204 -> 0 | E87: ='[2]7 - Pupil Premium FSM'!M204 -> 0 | F87: ='[2]7 - Pupil Premium FSM'!N204 -> 0 | G87: ='[2]7 - Pupil Premium FSM'!O204 -> 0
A89: C/F Total | B89: ='[2]7 - Pupil Premium FSM'!J205 -> -4235.16 | C89: ='[2]7 - Pupil Premium FSM'!K205 -> -2841.1 | D89: ='[2]7 - Pupil Premium FSM'!L205 -> -13786.39643 | E89: ='[2]7 - Pupil Premium FSM'!M205 -> -21809.29799 | F89: ='[2]7 - Pupil Premium FSM'!N205 -> -26869.30811 | G89: ='[2]7 - Pupil Premium FSM'!O205 -> -30905.75993 | H89: Note: A negative figure demonstrates a surplus
A91: Pupil Premium Service Children - (I05) | B91: £ | C91: £ | D91: £ | E91: £ | F91: £ | G91: £
A93: Income:
A94: B/F Total | B94: ='[2]7a - Pupil Premium Service'!J11 -> -419 | C94: =B102 -> -729 | D94: =C102 -> -1039 | E94: =D102 -> -1349 | F94: =E102 -> -1659 | G94: =F102 -> -1659
A95: Pupil Premium Service Children | B95: ='[2]7a - Pupil Premium Service'!J12 -> -310 | C95: ='[2]7a - Pupil Premium Service'!K12 -> -310 | D95: ='[2]7a - Pupil Premium Service'!L12 -> -310 | E95: ='[2]7a - Pupil Premium Service'!M12 -> -310 | F95: ='[2]7a - Pupil Premium Service'!N12 -> 0 | G95: ='[2]7a - Pupil Premium Service'!O12 -> 0
A96: Total Pupil Premium Service Children Income | B96: =SUM(B94:B95) -> -729 | C96: -1039 | D96: -1349 | E96: -1659 | F96: -1659 | G96: -1659
A98: Expenditure:
A99: Pupil Premium Service Children | B99: ='[2]7a - Pupil Premium Service'!J197 -> 0 | C99: ='[2]7a - Pupil Premium Service'!K197 -> 0 | D99: ='[2]7a - Pupil Premium Service'!L197 -> 0 | E99: ='[2]7a - Pupil Premium Service'!M197 -> 0 | F99: ='[2]7a - Pupil Premium Service'!N197 -> 0 | G99: ='[2]7a - Pupil Premium Service'!O197 -> 0
A100: Overspend charged back to Budget Share | B100: ='[2]7a - Pupil Premium Service'!J200 -> 0 | C100: ='[2]7a - Pupil Premium Service'!K200 -> 0 | D100: ='[2]7a - Pupil Premium Service'!L200 -> 0 | E100: ='[2]7a - Pupil Premium Service'!M200 -> 0 | F100: ='[2]7a - Pupil Premium Service'!N200 -> 0 | G100: ='[2]7a - Pupil Premium Service'!O200 -> 0
A102: C/F Total | B102: ='[2]7a - Pupil Premium Service'!J201 -> -729 | C102: ='[2]7a - Pupil Premium Service'!K201 -> -1039 | D102: ='[2]7a - Pupil Premium Service'!L201 -> -1349 | E102: ='[2]7a - Pupil Premium Service'!M201 -> -1659 | F102: ='[2]7a - Pupil Premium Service'!N201 -> -1659 | G102: ='[2]7a - Pupil Premium Service'!O201 -> -1659 | H102: Note: A negative figure demonstrates a surplus
A104: Pupil Premium Looked After Children - (I05) | B104: £ | C104: £ | D104: £ | E104: £ | F104: £ | G104: £
A106: Income:
A107: B/F Total | B107: ='[2]7b - Pupil Premium LAC'!J11 -> 0 | C107: =B117 -> -4459.71 | D107: =C117 -> -3081.71 | E107: =D117 -> -7181.71 | F107: =E117 -> -11781.71 | G107: =F117 -> -16381.71
A108: Pupil Premium Looked After Children | B108: ='[2]7b - Pupil Premium LAC'!J12 -> -2000 | C108: ='[2]7b - Pupil Premium LAC'!K12 -> -5000 | D108: ='[2]7b - Pupil Premium LAC'!L12 -> -5000 | E108: ='[2]7b - Pupil Premium LAC'!M12 -> -5000 | F108: ='[2]7b - Pupil Premium LAC'!N12 -> -5000 | G108: ='[2]7b - Pupil Premium LAC'!O12 -> -4000
A109: Pupil Premium Looked After Children Virtual Head Funding | B109: ='[2]7b - Pupil Premium LAC'!J13 -> -3294 | C109: ='[2]7b - Pupil Premium LAC'!K13 -> 0 | D109: ='[2]7b - Pupil Premium LAC'!L13 -> 0 | E109: ='[2]7b - Pupil Premium LAC'!M13 -> 0 | F109: ='[2]7b - Pupil Premium LAC'!N13 -> 0 | G109: ='[2]7b - Pupil Premium LAC'!O13 -> 0
A110: Pupil Premium Looked After Children Out of County Funding | B110: ='[2]7b - Pupil Premium LAC'!J18 -> 0 | C110: ='[2]7b - Pupil Premium LAC'!K18 -> 0 | D110: ='[2]7b - Pupil Premium LAC'!L18 -> 0 | E110: ='[2]7b - Pupil Premium LAC'!M18 -> 0 | F110: ='[2]7b - Pupil Premium LAC'!N18 -> 0 | G110: ='[2]7b - Pupil Premium LAC'!O18 -> 0
A111: Total Pupil Premium Looked After Children Income | B111: =SUM(B107:B110) -> -5294 | C111: -9459.71 | D111: -8081.71 | E111: -12181.71 | F111: -16781.71 | G111: -20381.71
A113: Expenditure:
A114: Pupil Premium Looked After Children | B114: ='[2]7b - Pupil Premium LAC'!J204 -> 834.29 | C114: ='[2]7b - Pupil Premium LAC'!K204 -> 6378 | D114: ='[2]7b - Pupil Premium LAC'!L204 -> 900 | E114: ='[2]7b - Pupil Premium LAC'!M204 -> 400 | F114: ='[2]7b - Pupil Premium LAC'!N204 -> 400 | G114: ='[2]7b - Pupil Premium LAC'!O204 -> 400
A115: Overspend charged back to Budget Share | B115: ='[2]7b - Pupil Premium LAC'!J207 -> 0 | C115: ='[2]7b - Pupil Premium LAC'!K207 -> 0 | D115: ='[2]7b - Pupil Premium LAC'!L207 -> 0 | E115: ='[2]7b - Pupil Premium LAC'!M207 -> 0 | F115: ='[2]7b - Pupil Premium LAC'!N207 -> 0 | G115: ='[2]7b - Pupil Premium LAC'!O207 -> 0
A117: C/F Total | B117: ='[2]7b - Pupil Premium LAC'!J208 -> -4459.71 | C117: ='[2]7b - Pupil Premium LAC'!K208 -> -3081.71 | D117: ='[2]7b - Pupil Premium LAC'!L208 -> -7181.71 | E117: ='[2]7b - Pupil Premium LAC'!M208 -> -11781.71 | F117: ='[2]7b - Pupil Premium LAC'!N208 -> -16381.71 | G117: ='[2]7b - Pupil Premium LAC'!O208 -> -19981.71 | H117: Note: A negative figure demonstrates a surplus
A119: Pupil Premium Post Looked After Children - (I05) | B119: £ | C119: £ | D119: £ | E119: £ | F119: £ | G119: £
A121: Income:
A122: B/F Total | B122: ='[2]7c - Pupil Premium Post LAC'!J11 -> -1252 | C122: =B130 -> -1875.81 | D122: =C130 -> -6465.81 | E122: =D130 -> -8810.81 | F122: =E130 -> -8810.81 | G122: =F130 -> -8810.81
A123: Pupil Premium Post Looked After Children | B123: ='[2]7c - Pupil Premium Post LAC'!J12 -> -7035 | C123: ='[2]7c - Pupil Premium Post LAC'!K12 -> -4690 | D123: ='[2]7c - Pupil Premium Post LAC'!L12 -> -2345 | E123: ='[2]7c - Pupil Premium Post LAC'!M12 -> 0 | F123: ='[2]7c - Pupil Premium Post LAC'!N12 -> 0 | G123: ='[2]7c - Pupil Premium Post LAC'!O12 -> 0
A124: Total Pupil Premium Post Looked After Children Income | B124: =SUM(B122:B123) -> -8287 | C124: -6565.81 | D124: -8810.81 | E124: -8810.81 | F124: -8810.81 | G124: -8810.81
A126: Expenditure:
A127: Pupil Premium Post Looked After Children | B127: ='[2]7c - Pupil Premium Post LAC'!J198 -> 6411.19 | C127: ='[2]7c - Pupil Premium Post LAC'!K198 -> 100 | D127: ='[2]7c - Pupil Premium Post LAC'!L198 -> 0 | E127: ='[2]7c - Pupil Premium Post LAC'!M198 -> 0 | F127: ='[2]7c - Pupil Premium Post LAC'!N198 -> 0 | G127: ='[2]7c - Pupil Premium Post LAC'!O198 -> 0
A128: Overspend charged back to Budget Share | B128: ='[2]7c - Pupil Premium Post LAC'!J201 -> 0 | C128: ='[2]7c - Pupil Premium Post LAC'!K201 -> 0 | D128: ='[2]7c - Pupil Premium Post LAC'!L201 -> 0 | E128: ='[2]7c - Pupil Premium Post LAC'!M201 -> 0 | F128: ='[2]7c - Pupil Premium Post LAC'!N201 -> 0 | G128: ='[2]7c - Pupil Premium Post LAC'!O201 -> 0
A130: C/F Total | B130: ='[2]7c - Pupil Premium Post LAC'!J202 -> -1875.81 | C130: ='[2]7c - Pupil Premium Post LAC'!K202 -> -6465.81 | D130: ='[2]7c - Pupil Premium Post LAC'!L202 -> -8810.81 | E130: ='[2]7c - Pupil Premium Post LAC'!M202 -> -8810.81 | F130: ='[2]7c - Pupil Premium Post LAC'!N202 -> -8810.81 | G130: ='[2]7c - Pupil Premium Post LAC'!O202 -> -8810.81 | H130: Note: A negative figure demonstrates a surplus
A132: Pupil Premium Early Years Funding - (I01) | B132: £ | C132: £ | D132: £ | E132: £ | F132: £ | G132: £
A134: Income:
A135: B/F Total | B135: ='[2]7d - Pupil Premium EY'!J9 -> 0 | C135: =B143 -> 0 | D135: =C143 -> 0 | E135: =D143 -> 0 | F135: =E143 -> 0 | G135: =F143 -> 0
A136: Pupil Premium Early Years Funding | B136: =SUM('[2]7d - Pupil Premium EY'!J10:J21) -> 0 | C136: =SUM('[2]7d - Pupil Premium EY'!K10:K21) -> 0 | D136: =SUM('[2]7d - Pupil Premium EY'!L10:L21) -> 0 | E136: =SUM('[2]7d - Pupil Premium EY'!M10:M21) -> 0 | F136: =SUM('[2]7d - Pupil Premium EY'!N10:N21) -> 0 | G136: =SUM('[2]7d - Pupil Premium EY'!O10:O21) -> 0
A137: Total Pupuil Premium Early Years Income | B137: =SUM(B135:B136) -> 0 | C137: 0 | D137: 0 | E137: 0 | F137: 0 | G137: 0
A139: Expenditure:
A140: Pupil Premium Early Years Funding | B140: ='[2]7d - Pupil Premium EY'!J206 -> 0 | C140: ='[2]7d - Pupil Premium EY'!K206 -> 0 | D140: ='[2]7d - Pupil Premium EY'!L206 -> 0 | E140: ='[2]7d - Pupil Premium EY'!M206 -> 0 | F140: ='[2]7d - Pupil Premium EY'!N206 -> 0 | G140: ='[2]7d - Pupil Premium EY'!O206 -> 0
A141: Overspend charged back to Budget Share | B141: ='[2]7d - Pupil Premium EY'!J209 -> 0 | C141: ='[2]7d - Pupil Premium EY'!K209 -> 0 | D141: ='[2]7d - Pupil Premium EY'!L209 -> 0 | E141: ='[2]7d - Pupil Premium EY'!M209 -> 0 | F141: ='[2]7d - Pupil Premium EY'!N209 -> 0 | G141: ='[2]7d - Pupil Premium EY'!O209 -> 0
A143: C/F Total | B143: ='[2]7d - Pupil Premium EY'!J210 -> 0 | C143: ='[2]7d - Pupil Premium EY'!K210 -> 0 | D143: ='[2]7d - Pupil Premium EY'!L210 -> 0 | E143: ='[2]7d - Pupil Premium EY'!M210 -> 0 | F143: ='[2]7d - Pupil Premium EY'!N210 -> 0 | G143: ='[2]7d - Pupil Premium EY'!O210 -> 0 | H143: Note: A negative figure demonstrates a surplus
A145: PE and Sport Income - (I18) | B145: £ | C145: £ | D145: £ | E145: £ | F145: £ | G145: £
A147: Income:
A148: B/F Total | B148: ='[2]8 - PE and Sport'!J10 -> -2512 | C148: =B155 -> -5976.82 | D148: =C155 -> -1141.62 | E148: =D155 -> -916.6533333 | F148: =E155 -> -662.8533333 | G148: =F155 -> -349.0533333
A149: April to August | B149: ='[2]8 - PE and Sport'!J11 -> -7800 | C149: ='[2]8 - PE and Sport'!K11 -> -7763 | D149: ='[2]8 - PE and Sport'!L11 -> -7762.5 | E149: ='[2]8 - PE and Sport'!M11 -> -7791.666667 | F149: ='[2]8 - PE and Sport'!N11 -> -7791.666667 | G149: ='[2]8 - PE and Sport'!O11 -> -7791.666667
A150: September to March | B150: ='[2]8 - PE and Sport'!J12 -> -10914 | C150: ='[2]8 - PE and Sport'!K12 -> -10867.5 | D150: ='[2]8 - PE and Sport'!L12 -> -10908.33333 | E150: ='[2]8 - PE and Sport'!M12 -> -10908.33333 | F150: ='[2]8 - PE and Sport'!N12 -> -10908.33333 | G150: ='[2]8 - PE and Sport'!O12 -> -10908.33333
A151: Total Income | B151: ='[2]8 - PE and Sport'!J13 -> -21226 | C151: ='[2]8 - PE and Sport'!K13 -> -24607.32 | D151: ='[2]8 - PE and Sport'!L13 -> -19812.45333 | E151: ='[2]8 - PE and Sport'!M13 -> -19616.65333 | F151: ='[2]8 - PE and Sport'!N13 -> -19362.85333 | G151: ='[2]8 - PE and Sport'!O13 -> -19049.05333
A153: Expenditure | B153: ='[2]8 - PE and Sport'!J199 -> 15249.18 | C153: ='[2]8 - PE and Sport'!K199 -> 23465.7 | D153: ='[2]8 - PE and Sport'!L199 -> 18895.8 | E153: ='[2]8 - PE and Sport'!M199 -> 18953.8 | F153: ='[2]8 - PE and Sport'!N199 -> 19013.8 | G153: ='[2]8 - PE and Sport'!O199 -> 19082.8
A155: C/F Total | B155: ='[2]8 - PE and Sport'!J201 -> -5976.82 | C155: ='[2]8 - PE and Sport'!K201 -> -1141.62 | D155: ='[2]8 - PE and Sport'!L201 -> -916.6533333 | E155: ='[2]8 - PE and Sport'!M201 -> -662.8533333 | F155: ='[2]8 - PE and Sport'!N201 -> -349.0533333 | G155: ='[2]8 - PE and Sport'!O201 -> 33.74666667 | H155: Note: A negative figure demonstrates a surplus
A157: Universal Infant Free School Meals - (I18) | B157: £ | C157: £ | D157: £ | E157: £ | F157: £ | G157: £
A159: Income
A160: B/F Total | B160: ='[2]8a - UIFSM'!I8 -> 3511 | C160: =B167 -> -21863.61 | D160: =C167 -> -16247.61 | E160: =D167 -> -10548.17486 | F160: =E167 -> -4801.435371 | G160: =F167 -> 993.0815138
A161: April to August | B161: ='[2]8a - UIFSM'!I9 -> -15349 | C161: ='[2]8a - UIFSM'!J9 -> -15746 | D161: ='[2]8a - UIFSM'!K9 -> -15746 | E161: ='[2]8a - UIFSM'!L9 -> -15746 | F161: ='[2]8a - UIFSM'!M9 -> -15746 | G161: ='[2]8a - UIFSM'!N9 -> -15746
A162: September to March | B162: ='[2]8a - UIFSM'!I10 -> -22045 | C162: ='[2]8a - UIFSM'!J10 -> -22045 | D162: ='[2]8a - UIFSM'!K10 -> -22045 | E162: ='[2]8a - UIFSM'!L10 -> -22045 | F162: ='[2]8a - UIFSM'!M10 -> -22045 | G162: ='[2]8a - UIFSM'!N10 -> -22045
A163: Total Income | B163: =SUM(B160:B162) -> -33883 | C163: -59654.61 | D163: -54038.61 | E163: -48339.17486 | F163: -42592.43537 | G163: -36797.91849
A165: Expenditure | B165: ='[2]8a - UIFSM'!I200 -> 12019.39 | C165: ='[2]8a - UIFSM'!J200 -> 43407 | D165: ='[2]8a - UIFSM'!K200 -> 43490.43514 | E165: ='[2]8a - UIFSM'!L200 -> 43537.73949 | F165: ='[2]8a - UIFSM'!M200 -> 43585.51689 | G165: ='[2]8a - UIFSM'!N200 -> 36797.77205
A167: C/F Total | B167: ='[2]8a - UIFSM'!I202 -> -21863.61 | C167: ='[2]8a - UIFSM'!J202 -> -16247.61 | D167: ='[2]8a - UIFSM'!K202 -> -10548.17486 | E167: ='[2]8a - UIFSM'!L202 -> -4801.435371 | F167: ='[2]8a - UIFSM'!M202 -> 993.0815138 | G167: ='[2]8a - UIFSM'!N202 -> -0.1464323152 | H167: Note: A negative figure demonstrates a surplus
A169: Vulnerable Bursary - (I02) | B169: £ | C169: £ | D169: £ | E169: £ | F169: £ | G169: £
A171: Income:
A172: B/F Total | B172: ='[2]8b - Vulnerable Bursary'!J8 -> 0 | C172: ='[2]8b - Vulnerable Bursary'!K8 -> 0 | D172: ='[2]8b - Vulnerable Bursary'!L8 -> 0 | E172: ='[2]8b - Vulnerable Bursary'!M8 -> 0 | F172: ='[2]8b - Vulnerable Bursary'!N8 -> 0 | G172: ='[2]8b - Vulnerable Bursary'!O8 -> 0
A173: Vulnerable Bursary | B173: ='[2]8b - Vulnerable Bursary'!J9 -> 0 | C173: ='[2]8b - Vulnerable Bursary'!K9 -> 0 | D173: ='[2]8b - Vulnerable Bursary'!L9 -> 0 | E173: ='[2]8b - Vulnerable Bursary'!M9 -> 0 | F173: ='[2]8b - Vulnerable Bursary'!N9 -> 0 | G173: ='[2]8b - Vulnerable Bursary'!O9 -> 0
A174: Total Vulnerable Bursary Income | B174: =SUM(B172:B173) -> 0 | C174: 0 | D174: 0 | E174: 0 | F174: 0 | G174: 0
A176: Expenditure:
A177: Vulnerable Bursary | B177: ='[2]8b - Vulnerable Bursary'!J194 -> 0 | C177: ='[2]8b - Vulnerable Bursary'!K194 -> 0 | D177: ='[2]8b - Vulnerable Bursary'!L194 -> 0 | E177: ='[2]8b - Vulnerable Bursary'!M194 -> 0 | F177: ='[2]8b - Vulnerable Bursary'!N194 -> 0 | G177: ='[2]8b - Vulnerable Bursary'!O194 -> 0
A179: C/F Total | B179: ='[2]8b - Vulnerable Bursary'!J196 -> 0 | C179: ='[2]8b - Vulnerable Bursary'!K196 -> 0 | D179: ='[2]8b - Vulnerable Bursary'!L196 -> 0 | E179: ='[2]8b - Vulnerable Bursary'!M196 -> 0 | F179: ='[2]8b - Vulnerable Bursary'!N196 -> 0 | G179: ='[2]8b - Vulnerable Bursary'!O196 -> 0 | H179: Note: A negative figure demonstrates a surplus
A181: 16-19 Bursary - (I02) | B181: £ | C181: £ | D181: £ | E181: £ | F181: £ | G181: £
A183: Income:
A184: B/F Total | B184: ='[2]8c - 16-19 Bursary'!J8 -> 0 | C184: ='[2]8c - 16-19 Bursary'!K8 -> 0 | D184: ='[2]8c - 16-19 Bursary'!L8 -> 0 | E184: ='[2]8c - 16-19 Bursary'!M8 -> 0 | F184: ='[2]8c - 16-19 Bursary'!N8 -> 0 | G184: ='[2]8c - 16-19 Bursary'!O8 -> 0
A185: 16-19 Bursary | B185: ='[2]8c - 16-19 Bursary'!J9 -> 0 | C185: ='[2]8c - 16-19 Bursary'!K9 -> 0 | D185: ='[2]8c - 16-19 Bursary'!L9 -> 0 | E185: ='[2]8c - 16-19 Bursary'!M9 -> 0 | F185: ='[2]8c - 16-19 Bursary'!N9 -> 0 | G185: ='[2]8c - 16-19 Bursary'!O9 -> 0
A186: Total 16-19 Bursary Income | B186: =SUM(B184:B185) -> 0 | C186: 0 | D186: 0 | E186: 0 | F186: 0 | G186: 0
A188: Expenditure:
A189: 16-19 Bursary | B189: ='[2]8c - 16-19 Bursary'!J194 -> 0 | C189: ='[2]8c - 16-19 Bursary'!K194 -> 0 | D189: ='[2]8c - 16-19 Bursary'!L194 -> 0 | E189: ='[2]8c - 16-19 Bursary'!M194 -> 0 | F189: ='[2]8c - 16-19 Bursary'!N194 -> 0 | G189: ='[2]8c - 16-19 Bursary'!O194 -> 0
A191: C/F Total | B191: ='[2]8c - 16-19 Bursary'!J196 -> 0 | C191: ='[2]8c - 16-19 Bursary'!K196 -> 0 | D191: ='[2]8c - 16-19 Bursary'!L196 -> 0 | E191: ='[2]8c - 16-19 Bursary'!M196 -> 0 | F191: ='[2]8c - 16-19 Bursary'!N196 -> 0 | G191: ='[2]8c - 16-19 Bursary'!O196 -> 0 | H191: Note: A negative figure demonstrates a surplus
A193: Other Grants | B193: £ | C193: £ | D193: £ | E193: £ | F193: £ | G193: £
A195: =IF(ISBLANK('[2]8d - Other Grants'!C7),"",'[2]8d - Other Grants'!C7) -> 
A196: B/F Total | B196: ='[2]8d - Other Grants'!E10 -> 0 | C196: ='[2]8d - Other Grants'!F10 -> 0 | D196: ='[2]8d - Other Grants'!G10 -> 0 | E196: ='[2]8d - Other Grants'!H10 -> 0 | F196: ='[2]8d - Other Grants'!I10 -> 0 | G196: ='[2]8d - Other Grants'!J10 -> 0
A197: Income | B197: =SUM('[2]8d - Other Grants'!E15+'[2]8d - Other Grants'!E20) -> 0 | C197: =SUM('[2]8d - Other Grants'!F15+'[2]8d - Other Grants'!F20) -> 0 | D197: =SUM('[2]8d - Other Grants'!G15+'[2]8d - Other Grants'!G20) -> 0 | E197: =SUM('[2]8d - Other Grants'!H15+'[2]8d - Other Grants'!H20) -> 0 | F197: =SUM('[2]8d - Other Grants'!I15+'[2]8d - Other Grants'!I20) -> 0 | G197: =SUM('[2]8d - Other Grants'!J15+'[2]8d - Other Grants'!J20) -> 0
A198: Total Income | B198: =SUM(B196:B197) -> 0 | C198: ='[2]8d - Other Grants'!F22 -> 0 | D198: ='[2]8d - Other Grants'!G22 -> 0 | E198: ='[2]8d - Other Grants'!H22 -> 0 | F198: ='[2]8d - Other Grants'!I22 -> 0 | G198: ='[2]8d - Other Grants'!J22 -> 0
A200: Expenditure | B200: ='[2]8d - Other Grants'!E300 -> 0 | C200: ='[2]8d - Other Grants'!F300 -> 0 | D200: ='[2]8d - Other Grants'!G300 -> 0 | E200: ='[2]8d - Other Grants'!H300 -> 0 | F200: ='[2]8d - Other Grants'!I300 -> 0 | G200: ='[2]8d - Other Grants'!J300 -> 0
A202: C/F Total | B202: ='[2]8d - Other Grants'!E302 -> 0 | C202: ='[2]8d - Other Grants'!F302 -> 0 | D202: ='[2]8d - Other Grants'!G302 -> 0 | E202: ='[2]8d - Other Grants'!H302 -> 0 | F202: ='[2]8d - Other Grants'!I302 -> 0 | G202: ='[2]8d - Other Grants'!J302 -> 0 | H202: Note: A negative figure demonstrates a surplus
A204: =IF(ISBLANK('[2]8d - Other Grants'!C304),"",'[2]8d - Other Grants'!C304) -> 
A205: B/F Total | B205: ='[2]8d - Other Grants'!E307 -> 0 | C205: ='[2]8d - Other Grants'!F307 -> 0 | D205: ='[2]8d - Other Grants'!G307 -> 0 | E205: ='[2]8d - Other Grants'!H307 -> 0 | F205: ='[2]8d - Other Grants'!I307 -> 0 | G205: ='[2]8d - Other Grants'!J307 -> 0
A206: Income | B206: =SUM('[2]8d - Other Grants'!E312+'[2]8d - Other Grants'!E317) -> 0 | C206: =SUM('[2]8d - Other Grants'!F312+'[2]8d - Other Grants'!F317) -> 0 | D206: =SUM('[2]8d - Other Grants'!G312+'[2]8d - Other Grants'!G317) -> 0 | E206: =SUM('[2]8d - Other Grants'!H312+'[2]8d - Other Grants'!H317) -> 0 | F206: =SUM('[2]8d - Other Grants'!I312+'[2]8d - Other Grants'!I317) -> 0 | G206: =SUM('[2]8d - Other Grants'!J312+'[2]8d - Other Grants'!J317) -> 0
A207: Total Income | B207: =SUM(B205:B206) -> 0 | C207: ='[2]8d - Other Grants'!F319 -> 0 | D207: ='[2]8d - Other Grants'!G319 -> 0 | E207: ='[2]8d - Other Grants'!H319 -> 0 | F207: ='[2]8d - Other Grants'!I319 -> 0 | G207: ='[2]8d - Other Grants'!J319 -> 0
A209: Expenditure | B209: ='[2]8d - Other Grants'!E598 -> 0 | C209: ='[2]8d - Other Grants'!F598 -> 0 | D209: ='[2]8d - Other Grants'!G598 -> 0 | E209: ='[2]8d - Other Grants'!H598 -> 0 | F209: ='[2]8d - Other Grants'!I598 -> 0 | G209: ='[2]8d - Other Grants'!J598 -> 0
A211: C/F Total | B211: ='[2]8d - Other Grants'!E600 -> 0 | C211: ='[2]8d - Other Grants'!F600 -> 0 | D211: ='[2]8d - Other Grants'!G600 -> 0 | E211: ='[2]8d - Other Grants'!H600 -> 0 | F211: ='[2]8d - Other Grants'!I600 -> 0 | G211: ='[2]8d - Other Grants'!J600 -> 0 | H211: Note: A negative figure demonstrates a surplus
A213: =IF(ISBLANK('[2]8d - Other Grants'!C602),"",'[2]8d - Other Grants'!C602) -> 
A214: B/F Total | B214: ='[2]8d - Other Grants'!E605 -> 0 | C214: ='[2]8d - Other Grants'!F605 -> 0 | D214: ='[2]8d - Other Grants'!G605 -> 0 | E214: ='[2]8d - Other Grants'!H605 -> 0 | F214: ='[2]8d - Other Grants'!I605 -> 0 | G214: ='[2]8d - Other Grants'!J605 -> 0
A215: Income | B215: =SUM('[2]8d - Other Grants'!E610+'[2]8d - Other Grants'!E615) -> 0 | C215: =SUM('[2]8d - Other Grants'!F610+'[2]8d - Other Grants'!F615) -> 0 | D215: =SUM('[2]8d - Other Grants'!G610+'[2]8d - Other Grants'!G615) -> 0 | E215: =SUM('[2]8d - Other Grants'!H610+'[2]8d - Other Grants'!H615) -> 0 | F215: =SUM('[2]8d - Other Grants'!I610+'[2]8d - Other Grants'!I615) -> 0 | G215: =SUM('[2]8d - Other Grants'!J610+'[2]8d - Other Grants'!J615) -> 0
A216: Total Income | B216: =SUM(B214:B215) -> 0 | C216: ='[2]8d - Other Grants'!F617 -> 0 | D216: ='[2]8d - Other Grants'!G617 -> 0 | E216: ='[2]8d - Other Grants'!H617 -> 0 | F216: ='[2]8d - Other Grants'!I617 -> 0 | G216: ='[2]8d - Other Grants'!J617 -> 0
A218: Expenditure | B218: ='[2]8d - Other Grants'!E896 -> 0 | C218: ='[2]8d - Other Grants'!F896 -> 0 | D218: ='[2]8d - Other Grants'!G896 -> 0 | E218: ='[2]8d - Other Grants'!H896 -> 0 | F218: ='[2]8d - Other Grants'!I896 -> 0 | G218: ='[2]8d - Other Grants'!J896 -> 0
A220: C/F Total | B220: ='[2]8d - Other Grants'!E898 -> 0 | C220: ='[2]8d - Other Grants'!F898 -> 0 | D220: ='[2]8d - Other Grants'!G898 -> 0 | E220: ='[2]8d - Other Grants'!H898 -> 0 | F220: ='[2]8d - Other Grants'!I898 -> 0 | G220: ='[2]8d - Other Grants'!J898 -> 0 | H220: Note: A negative figure demonstrates a surplus
A222: Devolved Capital: | B222: £ | C222: £ | D222: £ | E222: £ | F222: £ | G222: £
A223: B/F Total | B223: 0 | C223: =B226 -> 0 | D223: =C226 -> 0 | E223: =D226 -> 0 | F223: =E226 -> 0 | G223: =F226 -> 0
A224: Budget | B224: 0 | C224: 0 | D224: 0 | E224: 0 | F224: 0 | G224: 0
A225: Expenditure | B225: 0 | C225: 0 | D225: 0 | E225: 0 | F225: 0 | G225: 0
A226: C/F Total | B226: =SUM(B223:B225) -> 0 | C226: 0 | D226: 0 | E226: 0 | F226: 0 | G226: 0
